Workbook

Sheet GERAL
A1: NOME DO EVENTO/AÇÃO DE DESENVOLVIMENTO | B1: RAZÃO SOCIAL DA EMPRESA/ INSTITUIÇÃO PROMOTORA | C1: CNPJ | D1: CH | E1: DATA INICIAL | F1: DATA FINAL | G1: NO PAÍS/NO EXTERIOR | H1: SERVIDOR | I1: TIPO DE DESPESA | J1: VALOR DA DESPESA EM R$ | K1: VALOR DE DIÁRIAS E PASSAGENS | L1: REMUNERAÇÃO RECEBIDA DURANTE O AFASTAMENTO EM R$ | M1: VALOR PER CAPITA | N1: NECESSIDADE DE DESENVOLVIMENTO DESCRITA NO PDP
A2: CURSOS: 1)RELAÇÕES INTERNACIONAIS - TEORIA E HISTÓRIA; 2)GESTÃO PESSOAL - BASE DA LIDERANÇA; 3)FUNDAMENTOS DA INTEGRAÇÃO REGIONAL - O MERCOSUL; E 4)FORMAÇÃO DE FACILITADORES DE APRENDIZAGEM | B2: 1)INSTITUTO LEGISLATIVO BRASILEIRO/SENADO FEDERAL; 2)FUNDACAO ESCOLA NACIONAL DE ADMINISTRACAO PUBLICA - ENAP; 3)FUNDACAO ESCOLA NACIONAL DE ADMINISTRACAO PUBLICA - ENAP; E 4)FUNDACAO ESCOLA NACIONAL DE ADMINISTRACAO PUBLICA - ENAP | C2: 1)00.530.279/0001-15; 2)00.627.612/0001-09; 3)00.530.279/0001-15; E 4)00.627.612/0001-09 | D2: 1) 60; 2) 50; 3) 40; E 4) 40 | E2: 2019-12-01 | F2: 2020-02-28 | G2: NO PAÍS | H2: GABRIELA COSTA SALAZAR RENNER | I2: GRATUITO | J2: 0 | K2: 0 | L2: 28478.58 | M2: =SUM(J2:L2) -> 28478.58 | N2: TEMA DEFINIDO NO GUIA DE CONHECIMENTOS DA ANTT - EIXO TEMÁTICO/GRUPO DE CONHECIMENTO: REGULAÇÃO/DESENVOLVIMENTO DA REGULAÇÃO; DESENVOLVIMENTO INSTITUCIONAL/GESTÃO DE PESSOAS;
A3: PCI 1º SEMESTRE/2020 - ESPANHOL | B3: EU APRENDO ESPANHOL/AULAS PARTICULARES DE ESPANHOL “EU APRENDO ESPANHOL” | C3: 27.652.880/0001-37 | D3: 36 | E3: 2020-01-01 | F3: 2020-06-30 | G3: NO PAÍS | H3: NELICIA MURARI BORGES | I3: RESSARCIMENTO | J3: 1185 | K3: 0 | L3: NÃO SE APLICA | M3: 1185 | N3: IDIOMAS
A4: PCI 1º SEMESTRE/2020 - INGLÊS | B4: CAMBLY INC | C4: - | D4: 38 | E4: 2020-01-01 | F4: 2020-07-15 | G4: NO PAÍS | H4: ELISA GUEDES GUERRA | I4: RESSARCIMENTO | J4: 880.04 | K4: 0 | L4: NÃO SE APLICA | M4: 880.04 | N4: IDIOMAS
A5: PCI 1º SEMESTRE/2020 - INGLÊS | B5: ENGLISH LIVE/ENGLISHTOWN DO BRASIL INTERMEDIAÇÕES LTDA | C5: 04.475.124/0001-84 | D5: 60 | E5: 2020-01-01 | F5: 2020-07-15 | G5: NO PAÍS | H5: FRANCISCO ALEXANDRE DE SALES NETO | I5: RESSARCIMENTO | J5: 456 | K5: 0 | L5: NÃO SE APLICA | M5: 456 | N5: IDIOMAS
A6: PCI 1º SEMESTRE/2020 - INGLÊS | B6: NATURAL ENGLISH INSTITUTO DE IDIOMAS DANFE LTDA - ME | C6: 09.291.643/0001-06 | D6: 35 | E6: 2020-01-04 | F6: 2020-06-27 | G6: NO PAÍS | H6: MARIANA LOMBARDO DE LIMA | I6: RESSARCIMENTO | J6: 1350 | K6: 0 | L6: NÃO SE APLICA | M6: 1350 | N6: IDIOMAS
A7: PCI 1º SEMESTRE/2020 - INGLÊS | B7: ENGLISH LIVE/ENGLISHTOWN DO BRASIL INTERMEDIAÇÕES LTDA | C7: 04.475.124/0001-84 | D7: 36 | E7: 2020-01-07 | F7: 2020-07-15 | G7: NO PAÍS | H7: DANIEL CHEDID PEREIRA JORDAO RAMOS | I7: RESSARCIMENTO | J7: 480 | K7: 0 | L7: NÃO SE APLICA | M7: 480 | N7: IDIOMAS
A8: CURSO - CURSO SOBRE ADMINISTRAÇÃO PÚBLICA | B8: ENSINO NACIONAL LTDA | C8: 20.357.386/0001-09 | D8: 80 | E8: 2020-01-19 | F8: 2020-02-02 | G8: NO PAÍS | H8: ALAN OLIVEIRA DOS SANTOS | I8: GRATUITO | J8: 0 | K8: 0 | L8: 166.51 | M8: =SUM(J8:L8) -> 166.51 | N8: TEMA DEFINIDO NO GUIA DE CONHECIMENTOS DA ANTT - EIXO TEMÁTICO/GRUPO DE CONHECIMENTO: REGULAÇÃO/DESENVOLVIMENTO DA REGULAÇÃO
A9: CURSO - ATUALIZAÇÃO JURÍDICA - DIREITO DIGITAL CONTEMPORÂNEO | B9: UNIEDUCAR INTELIGÊNCIA EDUCACIONAL LTDA | C9: 05.569.970/0001-26 | D9: 140 | E9: 2020-01-19 | F9: 2020-02-17 | G9: NO PAÍS | H9: ALOISIO GOMES CAIXETA | I9: GRATUITO | J9: 0 | K9: 0 | L9: 21036.46 | M9: =SUM(J9:L9) -> 21036.46 | N9: TEMA DEFINIDO NO GUIA DE CONHECIMENTOS DA ANTT - EIXO TEMÁTICO/GRUPO DE CONHECIMENTO: GOVERNANÇA CORPORATIVA/ATOS, PROCESSOS E PROCEDIMENTOS ADMINISTRATIVOS
A10: CURSOS: 1) ADMINISTRANDO CONFLITOS; 2) INTRODUÇÃO À COMUNICAÇÃO NÃO VIOLENTA; 3) CURSO GESTÃO DE CONFLITOS: ADMINISTRANDO CRISES CORPORATIVAS | B10: 1) WR EDUCACIONAL LTDA ME; 2) UDEMY, INC; 3) UNIEDUCAR INTELIGÊNCIA EDUCACIONAL LTDA | C10: 1) 26.165.960/0001-03; 2) 29.030.862/0001-49; 3) 05.569.970/0001-26 | D10: 1) 160; 2) 2; 3) 60 | E10: 2020-01-19 | F10: 2020-02-17 | G10: NO PAÍS | H10: ANA PATRÍCIA DA SILVA DE BRITO | I10: GRATUITO | J10: 0 | K10: 0 | L10: 19564.36 | M10: =SUM(J10:L10) -> 19564.36 | N10: TEMA DEFINIDO NO GUIA DE CONHECIMENTOS DA ANTT - EIXO TEMÁTICO/GRUPO DE CONHECIMENTO: DESENVOLVIMENTO INSTITUCIONAL/GESTÃO DE PESSOAS
A11: CURSO ADMINISTRANDO RELACIONAMENTOS, DESENVOLVENDO A LIDERANÇA E TRABALHANDO A MOTIVAÇÃO | B11: UNIEDUCAR INTELIGÊNCIA EDUCACIONAL LTDA | C11: 05.569.970/0001-26 | D11: 140 | E11: 2020-01-19 | F11: 2020-02-17 | G11: NO PAÍS | H11: SERGIO STANCIOLI COSTA COUTO | I11: GRATUITO | J11: 0 | K11: 0 | L11: 19541.88 | M11: =SUM(J11:L11) -> 19541.88 | N11: TEMA DEFINIDO NO GUIA DE CONHECIMENTOS DA ANTT - EIXO TEMÁTICO/GRUPO DE CONHECIMENTO: DESENVOLVIMENTO INSTITUCIONAL/GESTÃO DE PESSOAS
A12: INTERNATIONAL BUSINESS PROGRAMME | B12: ESCOLA DE ALTA DIRECCION Y ADMINISTRACION - EADA | C12: NÃO HÁ | D12: 60 | E12: 2020-01-20 | F12: 2020-01-31 | G12: NO EXTERIOR | H12: CYNTHIA RUAS VIEIRA BRAYER | I12: GRATUITO | J12: 0 | K12: 0 | L12: 7219.34 | M12: =SUM(J12:L12) -> 7219.34 | N12: INSTRUMENTOS DE NEGOCIAÇÃO/ AMPLIAR CONHECIMENTO E HABILIDADES NO USO DE TÉCNICA DE APOIO À TOMADA DE DECISÃO/MEDIAÇÃO DE CONFLITOS/ AMPLIAR E DESENVOLVER METODOLOGIAS QUE FACILITEM AS RELAÇÕES HUMANAS E COMPETÊNCIAS INTERPESSOAIS NO AMBIENTE DE TRABALHO/ DESENVOLVER COMPETÊNCIAS NA GESTÃO E LIDERANÇA DE EQUIPES/ ADQUIRIR CONHECIMENTO SOBRE OS MÉTODOS, SOLUÇÕES E MELHORES PRÁTICAS SOBRE GESTÃO DA INOVAÇÃO EM INSTITUIÇÕES PÚBLICAS
A13: PCI 1º SEMESTRE/2020 - INGLÊS | B13: WIZARD/B & B EMPREENDIMENTOS E CURSOS DE IDIOMAS LTDA - ME | C13: 08.886.726/0001-85 | D13: 35 | E13: 2020-01-20 | F13: 2020-07-09 | G13: NO PAÍS | H13: GIULLIANO RENATO MOLINERO | I13: RESSARCIMENTO | J13: 828 | K13: 0 | L13: NÃO SE APLICA | M13: 828 | N13: IDIOMAS
A14: PCI 1º SEMESTRE/2020 - INGLÊS | B14: ENGLISH LIVE/ENGLISHTOWN DO BRASIL INTERMEDIAÇÕES LTDA | C14: 04.475.124/0001-84 | D14: 500 | E14: 2020-01-21 | F14: 2020-07-15 | G14: NO PAÍS | H14: EDUARDO GUIMARAES ABATE | I14: RESSARCIMENTO | J14: 516 | K14: 0 | L14: NÃO SE APLICA | M14: 516 | N14: IDIOMAS
A15: PCI 1º SEMESTRE/2020 - INGLÊS | B15: MINDS INSTITUTO EDUCACIONAL PARAÍSO/ INSTITUTO EDUCACIONAL PARAÍSO LTDA | C15: 15.537.606/0001-02 | D15: 48 | E15: 2020-01-21 | F15: 2020-07-15 | G15: NO PAÍS | H15: MARINA EGUEZ RODRIGUES | I15: RESSARCIMENTO | J15: 777 | K15: 0 | L15: NÃO SE APLICA | M15: 777 | N15: IDIOMAS
A16: PCI 1º SEMESTRE/2020 - INGLÊS | B16: PARK IDIOMAS/LDGC ESCOLA DE IDIOMAS LTDA | C16: 18.927.492/0001-20 | D16: 24 | E16: 2020-01-23 | F16: 2020-07-15 | G16: NO PAÍS | H16: CAIO CESAR NASCIMENTO NOGUEIRA | I16: RESSARCIMENTO | J16: 796.86 | K16: 0 | L16: NÃO SE APLICA | M16: 796.86 | N16: IDIOMAS
A17: PCI 1º SEMESTRE/2020 - INGLÊS | B17: PARK IDIOMAS/LDGC ESCOLA DE IDIOMAS LTDA | C17: 18.927.492/0001-20 | D17: 40 | E17: 2020-01-25 | F17: 2020-07-15 | G17: NO PAÍS | H17: PAULO FABIO DA SILVA EUGENIO | I17: RESSARCIMENTO | J17: 1350 | K17: 0 | L17: NÃO SE APLICA | M17: 1350 | N17: IDIOMAS
A18: PCI 1º SEMESTRE/2020 - INGLÊS | B18: BRASAS ENGLISH COURSE/ ENGLISH COMPANY ASSESSORIA LINGUISTICA LTDA - EPP | C18: 00.961.357/0001-36 | D18: 59 | E18: 2020-01-28 | F18: 2020-06-02 | G18: NO PAÍS | H18: PAULO HENRIQUE DA SILVA COSTA | I18: RESSARCIMENTO | J18: 1466.5 | K18: 0 | L18: NÃO SE APLICA | M18: 1466.5 | N18: IDIOMAS
A19: CURSO - ATUALIZAÇÃO JURÍDICA - DIREITO DA INFRAESTRUTURA | B19: UNIEDUCAR INTELIGÊNCIA EDUCACIONAL LTDA | C19: 05.569.970/0001-26 | D19: 80 | E19: 2020-02-03 | F19: 2020-02-17 | G19: NO PAÍS | H19: JOAO VICTOR DINIZ FERREIRA | I19: GRATUITO | J19: 0 | K19: 0 | L19: 9024.17 | M19: =SUM(J19:L19) -> 9024.17 | N19: TEMA DEFINIDO NO GUIA DE CONHECIMENTOS DA ANTT - EIXO TEMÁTICO/GRUPO DE CONHECIMENTO: REGULAÇÃO/DESENVOLVIMENTO DA REGULAÇÃO
A20: CURSO DE LOGISTICA DE TRANSPORTES | B20: ENSINO NACIONAL LTDA | C20: 20.357.386/0001-09 | D20: 140 | E20: 2020-02-03 | F20: 2020-03-03 | G20: NO PAÍS | H20: HUGO FREITAS DE SOUSA | I20: GRATUITO | J20: 0 | K20: 0 | L20: 9990.44 | M20: =SUM(J20:L20) -> 9990.44 | N20: TEMA DEFINIDO NO GUIA DE CONHECIMENTOS DA ANTT - EIXO TEMÁTICO/GRUPO DE CONHECIMENTO: DESENVOLVIMENTO INSTITUCIONAL/LOGÍSTICA
A21: CURSO FORMAÇÃO COMPLETA EM SCRUM - PLANEJAMENTO E GESTÃO ÁGIL DE PROJETOS | B21: UNIEDUCAR INTELIGÊNCIA EDUCACIONAL LTDA | C21: 05.569.970/0001-26 | D21: 140 | E21: 2020-02-03 | F21: 2020-03-03 | G21: NO PAÍS | H21: SYLVIA COTIAS VASCONCELLOS | I21: SEM CUSTOS DE INSCRIÇÃO - GRATUITO | J21: 0 | K21: 0 | L21: 18048.34 | M21: 18048.34 | N21: TEMA DEFINIDO NO GUIA DE CONHECIMENTOS DA ANTT - EIXO TEMÁTICO/GRUPO DE CONHECIMENTO: DESENVOLVIMENTO INSTITUCIONAL/MODELOS DE GESTÃO
A22: PCI 1º SEMESTRE/2020 - INGLÊS | B22: PARK IDIOMAS/LDGC ESCOLA DE IDIOMAS LTDA | C22: 18.927.492/0001-20 | D22: 38 | E22: 2020-02-03 | F22: 2020-06-29 | G22: NO PAÍS | H22: CLAUDIO TIYOSHI MIURA | I22: RESSARCIMENTO | J22: 1245.8 | K22: 0 | L22: NÃO SE APLICA | M22: 1245.8 | N22: IDIOMAS
A23: PCI 1º SEMESTRE/2020 - INGLÊS | B23: PARK IDIOMAS/LDGC ESCOLA DE IDIOMAS LTDA | C23: 18.927.492/0001-20 | D23: 38 | E23: 2020-02-03 | F23: 2020-06-29 | G23: NO PAÍS | H23: CRISTIANE PACHECO LOURENCO | I23: RESSARCIMENTO | J23: 1245.8 | K23: 0 | L23: NÃO SE APLICA | M23: 1245.8 | N23: IDIOMAS
A24: PCI 1º SEMESTRE/2020 - INGLÊS | B24: PARK IDIOMAS/LDGC ESCOLA DE IDIOMAS LTDA | C24: 18.927.492/0001-20 | D24: 38 | E24: 2020-02-03 | F24: 2020-06-29 | G24: NO PAÍS | H24: LEILANE MORAIS ALCÂNTARA | I24: RESSARCIMENTO | J24: 1245.8 | K24: 0 | L24: NÃO SE APLICA | M24: 1245.8 | N24: IDIOMAS
A25: PCI 1º SEMESTRE/2020 - INGLÊS | B25: PARK IDIOMAS/LDGC ESCOLA DE IDIOMAS LTDA | C25: 18.927.492/0001-20 | D25: 38 | E25: 2020-02-03 | F25: 2020-06-29 | G25: NO PAÍS | H25: LUIS CARLOS DE OLIVEIRA TAQUES | I25: RESSARCIMENTO | J25: 1245.8 | K25: 0 | L25: NÃO SE APLICA | M25: 1245.8 | N25: IDIOMAS
A26: PCI 1º SEMESTRE/2020 - INGLÊS | B26: CENTRO CULTURAL INTERNACIONAL/AGRICIA DA SILVA OLIVEIRA | C26: 33.021.673/0001-87 | D26: 30 | E26: 2020-02-03 | F26: 2020-07-15 | G26: NO PAÍS | H26: MARIANA RODRIGUES BROCHADO | I26: RESSARCIMENTO | J26: 1350 | K26: 0 | L26: NÃO SE APLICA | M26: 1350 | N26: IDIOMAS
A27: SPRINT DE DIMENSIONAMENTO DA FORÇA DE TRABALHO - TURMA 1 | B27: MENSE DESENVOLVIMENTO HUMANO E ORGANIZAÇÃO LTDA | C27: 31.101.019/0001-58 | D27: 40 | E27: 2020-02-05 | F27: 2020-03-06 | G27: NO PAÍS | H27: ALESSANDRO JUNIO DA SILVA | I27: CONTRATAÇÃO | J27: 1055.56 | K27: 0 | L27: 1604.7 | M27: =SUM(J27:L27) -> 2660.26 | N27: ATUALIZAR CONHECIMENTOS NECESSÁRIOS À GESTÃO DA FORÇA DE TRABALHO
A28: SPRINT DE DIMENSIONAMENTO DA FORÇA DE TRABALHO - TURMA 1 | B28: MENSE DESENVOLVIMENTO HUMANO E ORGANIZAÇÃO LTDA | C28: 31.101.019/0001-58 | D28: 40 | E28: 2020-02-05 | F28: 2020-03-06 | G28: NO PAÍS | H28: ANDERSON GOMES MONTEIRO | I28: CONTRATAÇÃO | J28: 1055.56 | K28: 0 | L28: 1665.073333 | M28: =SUM(J28:L28) -> 2720.633333 | N28: ATUALIZAR CONHECIMENTOS NECESSÁRIOS À GESTÃO DA FORÇA DE TRABALHO
A29: SPRINT DE DIMENSIONAMENTO DA FORÇA DE TRABALHO - TURMA 1 | B29: MENSE DESENVOLVIMENTO HUMANO E ORGANIZAÇÃO LTDA | C29: 31.101.019/0001-58 | D29: 40 | E29: 2020-02-05 | F29: 2020-03-06 | G29: NO PAÍS | H29: ANDRE RICARDO RODRIGUES | I29: CONTRATAÇÃO | J29: 1055.56 | K29: 0 | L29: 1582.14 | M29: =SUM(J29:L29) -> 2637.7 | N29: ATUALIZAR CONHECIMENTOS NECESSÁRIOS À GESTÃO DA FORÇA DE TRABALHO
A30: SPRINT DE DIMENSIONAMENTO DA FORÇA DE TRABALHO - TURMA 1 | B30: MENSE DESENVOLVIMENTO HUMANO E ORGANIZAÇÃO LTDA | C30: 31.101.019/0001-58 | D30: 40 | E30: 2020-02-05 | F30: 2020-03-06 | G30: NO PAÍS | H30: CLEIDES SILVA CAMPOS FONTENELE | I30: CONTRATAÇÃO | J30: 1055.56 | K30: 0 | L30: 3100.79 | M30: =SUM(J30:L30) -> 4156.35 | N30: ATUALIZAR CONHECIMENTOS NECESSÁRIOS À GESTÃO DA FORÇA DE TRABALHO
A31: SPRINT DE DIMENSIONAMENTO DA FORÇA DE TRABALHO - TURMA 1 | B31: MENSE DESENVOLVIMENTO HUMANO E ORGANIZAÇÃO LTDA | C31: 31.101.019/0001-58 | D31: 40 | E31: 2020-02-05 | F31: 2020-03-06 | G31: NO PAÍS | H31: DANIEL ANTONIO DA MOTA ARAUJO | I31: CONTRATAÇÃO | J31: 1055.56 | K31: 0 | L31: 3100.79 | M31: =SUM(J31:L31) -> 4156.35 | N31: ATUALIZAR CONHECIMENTOS NECESSÁRIOS À GESTÃO DA FORÇA DE TRABALHO
A32: SPRINT DE DIMENSIONAMENTO DA FORÇA DE TRABALHO - TURMA 1 | B32: MENSE DESENVOLVIMENTO HUMANO E ORGANIZAÇÃO LTDA | C32: 31.101.019/0001-58 | D32: 40 | E32: 2020-02-05 | F32: 2020-03-06 | G32: NO PAÍS | H32: DORENICE DE FATIMA ABRANCHES MONTEIRO VERLY | I32: CONTRATAÇÃO | J32: 1055.56 | K32: 0 | L32: 1405.64 | M32: =SUM(J32:L32) -> 2461.2 | N32: ATUALIZAR CONHECIMENTOS NECESSÁRIOS À GESTÃO DA FORÇA DE TRABALHO
A33: SPRINT DE DIMENSIONAMENTO DA FORÇA DE TRABALHO - TURMA 1 | B33: MENSE DESENVOLVIMENTO HUMANO E ORGANIZAÇÃO LTDA | C33: 31.101.019/0001-58 | D33: 40 | E33: 2020-02-05 | F33: 2020-03-06 | G33: NO PAÍS | H33: EVERALDO VALENGA ALVES | I33: CONTRATAÇÃO | J33: 1055.56 | K33: 0 | L33: 2924.95 | M33: =SUM(J33:L33) -> 3980.51 | N33: ATUALIZAR CONHECIMENTOS NECESSÁRIOS À GESTÃO DA FORÇA DE TRABALHO
A34: SPRINT DE DIMENSIONAMENTO DA FORÇA DE TRABALHO - TURMA 1 | B34: MENSE DESENVOLVIMENTO HUMANO E ORGANIZAÇÃO LTDA | C34: 31.101.019/0001-58 | D34: 40 | E34: 2020-02-05 | F34: 2020-03-06 | G34: NO PAÍS | H34: FERNANDO ANDRADE SOLLERO | I34: CONTRATAÇÃO | J34: 1055.56 | K34: 0 | L34: 3174.89 | M34: =SUM(J34:L34) -> 4230.45 | N34: ATUALIZAR CONHECIMENTOS NECESSÁRIOS À GESTÃO DA FORÇA DE TRABALHO
A35: SPRINT DE DIMENSIONAMENTO DA FORÇA DE TRABALHO - TURMA 1 | B35: MENSE DESENVOLVIMENTO HUMANO E ORGANIZAÇÃO LTDA | C35: 31.101.019/0001-58 | D35: 40 | E35: 2020-02-05 | F35: 2020-03-06 | G35: NO PAÍS | H35: GERALDO RODRIGUES DA SILVA JUNIOR | I35: CONTRATAÇÃO | J35: 1055.56 | K35: 0 | L35: 3256.98 | M35: =SUM(J35:L35) -> 4312.54 | N35: ATUALIZAR CONHECIMENTOS NECESSÁRIOS À GESTÃO DA FORÇA DE TRABALHO
A36: SPRINT DE DIMENSIONAMENTO DA FORÇA DE TRABALHO - TURMA 1 | B36: MENSE DESENVOLVIMENTO HUMANO E ORGANIZAÇÃO LTDA | C36: 31.101.019/0001-58 | D36: 40 | E36: 2020-02-05 | F36: 2020-03-06 | G36: NO PAÍS | H36: GUILHERME ALMEIDA PEREIRA | I36: CONTRATAÇÃO | J36: 1055.56 | K36: 0 | L36: 1405.64 | M36: =SUM(J36:L36) -> 2461.2 | N36: ATUALIZAR CONHECIMENTOS NECESSÁRIOS À GESTÃO DA FORÇA DE TRABALHO
A37: SPRINT DE DIMENSIONAMENTO DA FORÇA DE TRABALHO - TURMA 1 | B37: MENSE DESENVOLVIMENTO HUMANO E ORGANIZAÇÃO LTDA | C37: 31.101.019/0001-58 | D37: 40 | E37: 2020-02-05 | F37: 2020-03-06 | G37: NO PAÍS | H37: GUSTAVO MODÉ LUNA | I37: CONTRATAÇÃO | J37: 1055.55 | K37: 0 | L37: 1405.64 | M37: =SUM(J37:L37) -> 2461.19 | N37: ATUALIZAR CONHECIMENTOS NECESSÁRIOS À GESTÃO DA FORÇA DE TRABALHO
A38: SPRINT DE DIMENSIONAMENTO DA FORÇA DE TRABALHO - TURMA 1 | B38: MENSE DESENVOLVIMENTO HUMANO E ORGANIZAÇÃO LTDA | C38: 31.101.019/0001-58 | D38: 40 | E38: 2020-02-05 | F38: 2020-03-06 | G38: NO PAÍS | H38: ISRAEL SOARES CHIARELLI | I38: CONTRATAÇÃO | J38: 1055.55 | K38: 0 | L38: 1405.64 | M38: =SUM(J38:L38) -> 2461.19 | N38: ATUALIZAR CONHECIMENTOS NECESSÁRIOS À GESTÃO DA FORÇA DE TRABALHO
A39: SPRINT DE DIMENSIONAMENTO DA FORÇA DE TRABALHO - TURMA 1 | B39: MENSE DESENVOLVIMENTO HUMANO E ORGANIZAÇÃO LTDA | C39: 31.101.019/0001-58 | D39: 40 | E39: 2020-02-05 | F39: 2020-03-06 | G39: NO PAÍS | H39: KAUE LUNARD KAWASHITA | I39: CONTRATAÇÃO | J39: 1055.55 | K39: 0 | L39: 2924.95 | M39: =SUM(J39:L39) -> 3980.5 | N39: ATUALIZAR CONHECIMENTOS NECESSÁRIOS À GESTÃO DA FORÇA DE TRABALHO
A40: SPRINT DE DIMENSIONAMENTO DA FORÇA DE TRABALHO - TURMA 1 | B40: MENSE DESENVOLVIMENTO HUMANO E ORGANIZAÇÃO LTDA | C40: 31.101.019/0001-58 | D40: 40 | E40: 2020-02-05 | F40: 2020-03-06 | G40: NO PAÍS | H40: LEANDRO PAIVA DE OLIVEIRA | I40: CONTRATAÇÃO | J40: 1055.55 | K40: 0 | L40: 1467.59 | M40: =SUM(J40:L40) -> 2523.14 | N40: ATUALIZAR CONHECIMENTOS NECESSÁRIOS À GESTÃO DA FORÇA DE TRABALHO
A41: SPRINT DE DIMENSIONAMENTO DA FORÇA DE TRABALHO - TURMA 1 | B41: MENSE DESENVOLVIMENTO HUMANO E ORGANIZAÇÃO LTDA | C41: 31.101.019/0001-58 | D41: 40 | E41: 2020-02-05 | F41: 2020-03-06 | G41: NO PAÍS | H41: MARCIO XAVIER DE ARAUJO | I41: CONTRATAÇÃO | J41: 1055.55 | K41: 0 | L41: 2780.91 | M41: =SUM(J41:L41) -> 3836.46 | N41: ATUALIZAR CONHECIMENTOS NECESSÁRIOS À GESTÃO DA FORÇA DE TRABALHO
A42: SPRINT DE DIMENSIONAMENTO DA FORÇA DE TRABALHO - TURMA 1 | B42: MENSE DESENVOLVIMENTO HUMANO E ORGANIZAÇÃO LTDA | C42: 31.101.019/0001-58 | D42: 40 | E42: 2020-02-05 | F42: 2020-03-06 | G42: NO PAÍS | H42: MURILLO ESMERALDO MONTELLA ROCHA | I42: CONTRATAÇÃO | J42: 1055.55 | K42: 0 | L42: 1604.7 | M42: =SUM(J42:L42) -> 2660.25 | N42: ATUALIZAR CONHECIMENTOS NECESSÁRIOS À GESTÃO DA FORÇA DE TRABALHO
A43: SPRINT DE DIMENSIONAMENTO DA FORÇA DE TRABALHO - TURMA 1 | B43: MENSE DESENVOLVIMENTO HUMANO E ORGANIZAÇÃO LTDA | C43: 31.101.019/0001-58 | D43: 40 | E43: 2020-02-05 | F43: 2020-03-06 | G43: NO PAÍS | H43: RODOLFO IKARO PINTO LIMA | I43: CONTRATAÇÃO | J43: 1055.55 | K43: 0 | L43: 1467.59 | M43: =SUM(J43:L43) -> 2523.14 | N43: ATUALIZAR CONHECIMENTOS NECESSÁRIOS À GESTÃO DA FORÇA DE TRABALHO
A44: SPRINT DE DIMENSIONAMENTO DA FORÇA DE TRABALHO - TURMA 1 | B44: MENSE DESENVOLVIMENTO HUMANO E ORGANIZAÇÃO LTDA | C44: 31.101.019/0001-58 | D44: 40 | E44: 2020-02-05 | F44: 2020-03-06 | G44: NO PAÍS | H44: ROSSIELE E SILVA FERRAZ FORMIGA | I44: CONTRATAÇÃO | J44: 1055.55 | K44: 0 | L44: 3260.73 | M44: =SUM(J44:L44) -> 4316.28 | N44: ATUALIZAR CONHECIMENTOS NECESSÁRIOS À GESTÃO DA FORÇA DE TRABALHO
A45: PCI 1º SEMESTRE/2020 - INGLÊS | B45: CCAA/CULTURA ANGLO AMERICANA LTDA | C45: 00.499.087/0001-93 | D45: 48 | E45: 2020-02-10 | F45: 2020-06-29 | G45: NO PAÍS | H45: KALIANE WILMA CAVALCANTE DE LIRA | I45: RESSARCIMENTO | J45: 770.43 | K45: 0 | L45: NÃO SE APLICA | M45: 770.43 | N45: IDIOMAS
A46: WORKSHOP SOBRE O DECRETO 10.139.2019 - REVISÃO E CONSOLIDAÇÃO DOS ATOS NORMATIVOS DA ANTT | B46: AGÊNCIA NACIONAL DE TRANSPORTES TERRESTRES - ANTT | C46: 04.898.488/0001-77 | D46: 4 | E46: 2020-02-11 | F46: 2020-02-11 | G46: NO PAÍS | H46: ALEXANDRE ALVES SOUTO | I46: GRATUITO | J46: 0 | K46: 0 | L46: 325.7 | M46: =SUM(J46:L46) -> 325.7 | N46: DESENVOLVIMENTO DE COMPETÊNCIAS RELATIVAS À LEGÍSTICA E AO PROCESSO LEGISLATIVO
A47: WORKSHOP SOBRE O DECRETO 10.139.2019 - REVISÃO E CONSOLIDAÇÃO DOS ATOS NORMATIVOS DA ANTT | B47: AGÊNCIA NACIONAL DE TRANSPORTES TERRESTRES - ANTT | C47: 04.898.488/0001-77 | D47: 4 | E47: 2020-02-11 | F47: 2020-02-11 | G47: NO PAÍS | H47: ANA BEATRIZ RODRIGUES CASTRO | I47: GRATUITO | J47: 0 | K47: 0 | L47: 300.81 | M47: =SUM(J47:L47) -> 300.81 | N47: DESENVOLVIMENTO DE COMPETÊNCIAS RELATIVAS À LEGÍSTICA E AO PROCESSO LEGISLATIVO
A48: WORKSHOP SOBRE O DECRETO 10.139.2019 - REVISÃO E CONSOLIDAÇÃO DOS ATOS NORMATIVOS DA ANTT | B48: AGÊNCIA NACIONAL DE TRANSPORTES TERRESTRES - ANTT | C48: 04.898.488/0001-77 | D48: 4 | E48: 2020-02-11 | F48: 2020-02-11 | G48: NO PAÍS | H48: ANA PATRIZIA GONÇALVES LIRA | I48: GRATUITO | J48: 0 | K48: 0 | L48: 342.3 | M48: =SUM(J48:L48) -> 342.3 | N48: DESENVOLVIMENTO DE COMPETÊNCIAS RELATIVAS À LEGÍSTICA E AO PROCESSO LEGISLATIVO
A49: WORKSHOP SOBRE O DECRETO 10.139.2019 - REVISÃO E CONSOLIDAÇÃO DOS ATOS NORMATIVOS DA ANTT | B49: AGÊNCIA NACIONAL DE TRANSPORTES TERRESTRES - ANTT | C49: 04.898.488/0001-77 | D49: 4 | E49: 2020-02-11 | F49: 2020-02-11 | G49: NO PAÍS | H49: CRISTIANE PACHECO LOURENCO | I49: GRATUITO | J49: 0 | K49: 0 | L49: 325.7 | M49: =SUM(J49:L49) -> 325.7 | N49: DESENVOLVIMENTO DE COMPETÊNCIAS RELATIVAS À LEGÍSTICA E AO PROCESSO LEGISLATIVO
A50: WORKSHOP SOBRE O DECRETO 10.139.2019 - REVISÃO E CONSOLIDAÇÃO DOS ATOS NORMATIVOS DA ANTT | B50: AGÊNCIA NACIONAL DE TRANSPORTES TERRESTRES - ANTT | C50: 04.898.488/0001-77 | D50: 4 | E50: 2020-02-11 | F50: 2020-02-11 | G50: NO PAÍS | H50: DEBORA JIMENEZ DUARTE | I50: GRATUITO | J50: 0 | K50: 0 | L50: 169.12 | M50: =SUM(J50:L50) -> 169.12 | N50: DESENVOLVIMENTO DE COMPETÊNCIAS RELATIVAS À LEGÍSTICA E AO PROCESSO LEGISLATIVO
A51: WORKSHOP SOBRE O DECRETO 10.139.2019 - REVISÃO E CONSOLIDAÇÃO DOS ATOS NORMATIVOS DA ANTT | B51: AGÊNCIA NACIONAL DE TRANSPORTES TERRESTRES - ANTT | C51: 04.898.488/0001-77 | D51: 4 | E51: 2020-02-11 | F51: 2020-02-11 | G51: NO PAÍS | H51: EDINAILTON SILVA RODRIGUES | I51: GRATUITO | J51: 0 | K51: 0 | L51: 300.81 | M51: =SUM(J51:L51) -> 300.81 | N51: DESENVOLVIMENTO DE COMPETÊNCIAS RELATIVAS À LEGÍSTICA E AO PROCESSO LEGISLATIVO
A52: WORKSHOP SOBRE O DECRETO 10.139.2019 - REVISÃO E CONSOLIDAÇÃO DOS ATOS NORMATIVOS DA ANTT | B52: AGÊNCIA NACIONAL DE TRANSPORTES TERRESTRES - ANTT | C52: 04.898.488/0001-77 | D52: 4 | E52: 2020-02-11 | F52: 2020-02-11 | G52: NO PAÍS | H52: FABIO QUERINO GONÇALVES | I52: GRATUITO | J52: 0 | K52: 0 | L52: 175.1 | M52: =SUM(J52:L52) -> 175.1 | N52: DESENVOLVIMENTO DE COMPETÊNCIAS RELATIVAS À LEGÍSTICA E AO PROCESSO LEGISLATIVO
A53: WORKSHOP SOBRE O DECRETO 10.139.2019 - REVISÃO E CONSOLIDAÇÃO DOS ATOS NORMATIVOS DA ANTT | B53: AGÊNCIA NACIONAL DE TRANSPORTES TERRESTRES - ANTT | C53: 04.898.488/0001-77 | D53: 4 | E53: 2020-02-11 | F53: 2020-02-11 | G53: NO PAÍS | H53: GUILHERME OLIVEIRA PIRES | I53: GRATUITO | J53: 0 | K53: 0 | L53: 292.48 | M53: =SUM(J53:L53) -> 292.48 | N53: DESENVOLVIMENTO DE COMPETÊNCIAS RELATIVAS À LEGÍSTICA E AO PROCESSO LEGISLATIVO
A54: WORKSHOP SOBRE O DECRETO 10.139.2019 - REVISÃO E CONSOLIDAÇÃO DOS ATOS NORMATIVOS DA ANTT | B54: AGÊNCIA NACIONAL DE TRANSPORTES TERRESTRES - ANTT | C54: 04.898.488/0001-77 | D54: 4 | E54: 2020-02-11 | F54: 2020-02-11 | G54: NO PAÍS | H54: JOSE EXPEDITO BRANDAO FILHO | I54: GRATUITO | J54: 0 | K54: 0 | L54: 300.81 | M54: =SUM(J54:L54) -> 300.81 | N54: DESENVOLVIMENTO DE COMPETÊNCIAS RELATIVAS À LEGÍSTICA E AO PROCESSO LEGISLATIVO
A55: WORKSHOP SOBRE O DECRETO 10.139.2019 - REVISÃO E CONSOLIDAÇÃO DOS ATOS NORMATIVOS DA ANTT | B55: AGÊNCIA NACIONAL DE TRANSPORTES TERRESTRES - ANTT | C55: 04.898.488/0001-77 | D55: 4 | E55: 2020-02-11 | F55: 2020-02-11 | G55: NO PAÍS | H55: KRIS CLEYTON ARAÚJO LEITE | I55: GRATUITO | J55: 0 | K55: 0 | L55: 164.75 | M55: =SUM(J55:L55) -> 164.75 | N55: DESENVOLVIMENTO DE COMPETÊNCIAS RELATIVAS À LEGÍSTICA E AO PROCESSO LEGISLATIVO
A56: WORKSHOP SOBRE O DECRETO 10.139.2019 - REVISÃO E CONSOLIDAÇÃO DOS ATOS NORMATIVOS DA ANTT | B56: AGÊNCIA NACIONAL DE TRANSPORTES TERRESTRES - ANTT | C56: 04.898.488/0001-77 | D56: 4 | E56: 2020-02-11 | F56: 2020-02-11 | G56: NO PAÍS | H56: LEVINA APARECIDA MACHADO SILVA | I56: GRATUITO | J56: 0 | K56: 0 | L56: 350.61 | M56: =SUM(J56:L56) -> 350.61 | N56: DESENVOLVIMENTO DE COMPETÊNCIAS RELATIVAS À LEGÍSTICA E AO PROCESSO LEGISLATIVO
A57: WORKSHOP SOBRE O DECRETO 10.139.2019 - REVISÃO E CONSOLIDAÇÃO DOS ATOS NORMATIVOS DA ANTT | B57: AGÊNCIA NACIONAL DE TRANSPORTES TERRESTRES - ANTT | C57: 04.898.488/0001-77 | D57: 4 | E57: 2020-02-11 | F57: 2020-02-11 | G57: NO PAÍS | H57: MARCELO LEISMANN DE OLIVEIRA | I57: GRATUITO | J57: 0 | K57: 0 | L57: 334 | M57: =SUM(J57:L57) -> 334 | N57: DESENVOLVIMENTO DE COMPETÊNCIAS RELATIVAS À LEGÍSTICA E AO PROCESSO LEGISLATIVO
A58: WORKSHOP SOBRE O DECRETO 10.139.2019 - REVISÃO E CONSOLIDAÇÃO DOS ATOS NORMATIVOS DA ANTT | B58: AGÊNCIA NACIONAL DE TRANSPORTES TERRESTRES - ANTT | C58: 04.898.488/0001-77 | D58: 4 | E58: 2020-02-11 | F58: 2020-02-11 | G58: NO PAÍS | H58: MARCIO DE OLIVEIRA PINTO | I58: GRATUITO | J58: 0 | K58: 0 | L58: 325.7 | M58: =SUM(J58:L58) -> 325.7 | N58: DESENVOLVIMENTO DE COMPETÊNCIAS RELATIVAS À LEGÍSTICA E AO PROCESSO LEGISLATIVO
A59: WORKSHOP SOBRE O DECRETO 10.139.2019 - REVISÃO E CONSOLIDAÇÃO DOS ATOS NORMATIVOS DA ANTT | B59: AGÊNCIA NACIONAL DE TRANSPORTES TERRESTRES - ANTT | C59: 04.898.488/0001-77 | D59: 4 | E59: 2020-02-11 | F59: 2020-02-11 | G59: NO PAÍS | H59: MARCUS VINICIUS DE ABREU SOUZA VASCONCELLOS | I59: GRATUITO | J59: 0 | K59: 0 | L59: 166.51 | M59: =SUM(J59:L59) -> 166.51 | N59: DESENVOLVIMENTO DE COMPETÊNCIAS RELATIVAS À LEGÍSTICA E AO PROCESSO LEGISLATIVO
A60: WORKSHOP SOBRE O DECRETO 10.139.2019 - REVISÃO E CONSOLIDAÇÃO DOS ATOS NORMATIVOS DA ANTT | B60: AGÊNCIA NACIONAL DE TRANSPORTES TERRESTRES - ANTT | C60: 04.898.488/0001-77 | D60: 4 | E60: 2020-02-11 | F60: 2020-02-11 | G60: NO PAÍS | H60: MARINA SOARES ALMEIDA | I60: GRATUITO | J60: 0 | K60: 0 | L60: 284.2 | M60: =SUM(J60:L60) -> 284.2 | N60: DESENVOLVIMENTO DE COMPETÊNCIAS RELATIVAS À LEGÍSTICA E AO PROCESSO LEGISLATIVO
A61: WORKSHOP SOBRE O DECRETO 10.139.2019 - REVISÃO E CONSOLIDAÇÃO DOS ATOS NORMATIVOS DA ANTT | B61: AGÊNCIA NACIONAL DE TRANSPORTES TERRESTRES - ANTT | C61: 04.898.488/0001-77 | D61: 4 | E61: 2020-02-11 | F61: 2020-02-11 | G61: NO PAÍS | H61: MYLENA MOREIRA DE ALENCASTRO COSTA | I61: GRATUITO | J61: 0 | K61: 0 | L61: 595.62 | M61: =SUM(J61:L61) -> 595.62 | N61: DESENVOLVIMENTO DE COMPETÊNCIAS RELATIVAS À LEGÍSTICA E AO PROCESSO LEGISLATIVO
A62: WORKSHOP SOBRE O DECRETO 10.139.2019 - REVISÃO E CONSOLIDAÇÃO DOS ATOS NORMATIVOS DA ANTT | B62: AGÊNCIA NACIONAL DE TRANSPORTES TERRESTRES - ANTT | C62: 04.898.488/0001-77 | D62: 4 | E62: 2020-02-11 | F62: 2020-02-11 | G62: NO PAÍS | H62: RAFAEL PEREIRA GONCALVES | I62: GRATUITO | J62: 0 | K62: 0 | L62: 45.89 | M62: =SUM(J62:L62) -> 45.89 | N62: DESENVOLVIMENTO DE COMPETÊNCIAS RELATIVAS À LEGÍSTICA E AO PROCESSO LEGISLATIVO
A63: WORKSHOP SOBRE O DECRETO 10.139.2019 - REVISÃO E CONSOLIDAÇÃO DOS ATOS NORMATIVOS DA ANTT | B63: AGÊNCIA NACIONAL DE TRANSPORTES TERRESTRES - ANTT | C63: 04.898.488/0001-77 | D63: 4 | E63: 2020-02-11 | F63: 2020-02-11 | G63: NO PAÍS | H63: SARAH JULIANA DA CUNHA GALINDO | I63: GRATUITO | J63: 0 | K63: 0 | L63: 169.12 | M63: =SUM(J63:L63) -> 169.12 | N63: DESENVOLVIMENTO DE COMPETÊNCIAS RELATIVAS À LEGÍSTICA E AO PROCESSO LEGISLATIVO
A64: WORKSHOP SOBRE O DECRETO 10.139.2019 - REVISÃO E CONSOLIDAÇÃO DOS ATOS NORMATIVOS DA ANTT | B64: AGÊNCIA NACIONAL DE TRANSPORTES TERRESTRES - ANTT | C64: 04.898.488/0001-77 | D64: 4 | E64: 2020-02-11 | F64: 2020-02-11 | G64: NO PAÍS | H64: THAIS MESSINA DE GODOY FREIXO | I64: GRATUITO | J64: 0 | K64: 0 | L64: 164.75 | M64: =SUM(J64:L64) -> 164.75 | N64: DESENVOLVIMENTO DE COMPETÊNCIAS RELATIVAS À LEGÍSTICA E AO PROCESSO LEGISLATIVO
A65: WORKSHOP SOBRE O DECRETO 10.139.2019 - REVISÃO E CONSOLIDAÇÃO DOS ATOS NORMATIVOS DA ANTT | B65: AGÊNCIA NACIONAL DE TRANSPORTES TERRESTRES - ANTT | C65: 04.898.488/0001-77 | D65: 4 | E65: 2020-02-11 | F65: 2020-02-11 | G65: NO PAÍS | H65: VICTOR COLONESE MOREIRA DA COSTA | I65: GRATUITO | J65: 0 | K65: 0 | L65: 300.81 | M65: =SUM(J65:L65) -> 300.81 | N65: DESENVOLVIMENTO DE COMPETÊNCIAS RELATIVAS À LEGÍSTICA E AO PROCESSO LEGISLATIVO
A66: CURSO LIDERANÇA COMO ESSÊNCIA DA GESTÃO | B66: FUNDACAO ESCOLA NACIONAL DE ADMINISTRACAO PUBLICA - ENAP | C66: 00.627.612/0001-09 | D66: 25 | E66: 2020-02-12 | F66: 2020-02-14 | G66: NO PAÍS | H66: NILTON DE MELO VIEIRA | I66: GRATUITO | J66: 0 | K66: 0 | L66: 1668.54 | M66: =SUM(J66:L66) -> 1668.54 | N66: DESENVOLVER COMPETÊNCIAS NA GESTÃO E LIDERANÇA DE EQUIPES
A67: PCI 1º SEMESTRE/2020 - INGLÊS | B67: WIZARD/BRASILEIRO E CORDEIRO LTDA - EPP | C67: 01.923.346/0001-24 | D67: 40 | E67: 2020-02-15 | F67: 2020-07-11 | G67: NO PAÍS | H67: ANA PAULA MOREIRA DA SILVA | I67: RESSARCIMENTO | J67: 807.09 | K67: 0 | L67: NÃO SE APLICA | M67: 807.09 | N67: IDIOMAS
A68: PCI 1º SEMESTRE/2020 - INGLÊS | B68: THOMAS JEFFERSON/CONSELHO CULTURAL THOMAS JEFFERSON | C68: 00.114.090/0001-41 | D68: 60 | E68: 2020-02-15 | F68: 2020-07-11 | G68: NO PAÍS | H68: WILTON COSTA DRUMOND SOUSA | I68: RESSARCIMENTO | J68: 1350 | K68: 0 | L68: NÃO SE APLICA | M68: 1350 | N68: IDIOMAS
A69: PCI 1º SEMESTRE/2020 - INGLÊS | B69: WIZARD/BH CASTELO IDIOMAS EIRELI | C69: 10.406.786/0001-03 | D69: 35 | E69: 2020-02-15 | F69: 2020-07-15 | G69: NO PAÍS | H69: MAURICIO LEITE DE MIRANDA | I69: RESSARCIMENTO | J69: 988.2 | K69: 0 | L69: NÃO SE APLICA | M69: 988.2 | N69: IDIOMAS
A70: PCI 1º SEMESTRE/2020 - FRANCÊS | B70: CULTURA FRANCESA/CURSO DE LINGUAS TRANSALPINO LTDA ME | C70: 05.583.734/0001-64 | D70: 36 | E70: 2020-02-17 | F70: 2020-06-27 | G70: NO PAÍS | H70: BRUNO DE SA GUIMARAES | I70: RESSARCIMENTO | J70: 910 | K70: 0 | L70: NÃO SE APLICA | M70: 910 | N70: IDIOMAS
A71: CONVENÇÃO ANUAL PARA APRESENTAÇÃO DOS RESULTADOS DA ANTT (O FUTURO DO TRABALLHO E DA GESTÃO) | B71: EXBOSS DESENVOLVIMENTO DE PESSOAS E ORGANIZAÇÕES EIRELI - ME | C71: 20139641/0001-39 | D71: 1 | E71: 2020-02-18 | F71: 2020-02-18 | G71: NO PAÍS | H71: ADAILTON RODRIGUES DA SILVA | I71: CONTRATAÇÃO | J71: 136.63 | K71: 0 | L71: 37.18 | M71: =SUM(J71:L71) -> 173.81 | N71: TEMA DEFINIDO NO GUIA DE CONHECIMENTOS DA ANTT - EIXO TEMÁTICO/GRUPO DE CONHECIMENTO: DESENVOLVIMENTO INSTITUCIONAL/MODELOS DE GESTÃO
A72: CONVENÇÃO ANUAL PARA APRESENTAÇÃO DOS RESULTADOS DA ANTT (O FUTURO DO TRABALLHO E DA GESTÃO) | B72: EXBOSS DESENVOLVIMENTO DE PESSOAS E ORGANIZAÇÕES EIRELI - ME | C72: 20139641/0001-39 | D72: 1 | E72: 2020-02-18 | F72: 2020-02-18 | G72: NO PAÍS | H72: ADALBERTO PEREIRA DA GAMA JUNIOR | I72: CONTRATAÇÃO | J72: 136.63 | K72: 0 | L72: 36.32 | M72: =SUM(J72:L72) -> 172.95 | N72: TEMA DEFINIDO NO GUIA DE CONHECIMENTOS DA ANTT - EIXO TEMÁTICO/GRUPO DE CONHECIMENTO: DESENVOLVIMENTO INSTITUCIONAL/MODELOS DE GESTÃO
A73: CONVENÇÃO ANUAL PARA APRESENTAÇÃO DOS RESULTADOS DA ANTT (O FUTURO DO TRABALLHO E DA GESTÃO) | B73: EXBOSS DESENVOLVIMENTO DE PESSOAS E ORGANIZAÇÕES EIRELI - ME | C73: 20139641/0001-39 | D73: 1 | E73: 2020-02-18 | F73: 2020-02-18 | G73: NO PAÍS | H73: ALAN JOSE DA SILVA | I73: CONTRATAÇÃO | J73: 136.63 | K73: 0 | L73: 85.58 | M73: =SUM(J73:L73) -> 222.21 | N73: TEMA DEFINIDO NO GUIA DE CONHECIMENTOS DA ANTT - EIXO TEMÁTICO/GRUPO DE CONHECIMENTO: DESENVOLVIMENTO INSTITUCIONAL/MODELOS DE GESTÃO
A74: CONVENÇÃO ANUAL PARA APRESENTAÇÃO DOS RESULTADOS DA ANTT (O FUTURO DO TRABALLHO E DA GESTÃO) | B74: EXBOSS DESENVOLVIMENTO DE PESSOAS E ORGANIZAÇÕES EIRELI - ME | C74: 20139641/0001-39 | D74: 1 | E74: 2020-02-18 | F74: 2020-02-18 | G74: NO PAÍS | H74: ALEXANDRE MUNÕZ LOPES DE OLIVEIRA | I74: CONTRATAÇÃO | J74: 136.63 | K74: 0 | L74: 87.65 | M74: =SUM(J74:L74) -> 224.28 | N74: TEMA DEFINIDO NO GUIA DE CONHECIMENTOS DA ANTT - EIXO TEMÁTICO/GRUPO DE CONHECIMENTO: DESENVOLVIMENTO INSTITUCIONAL/MODELOS DE GESTÃO
A75: CONVENÇÃO ANUAL PARA APRESENTAÇÃO DOS RESULTADOS DA ANTT (O FUTURO DO TRABALLHO E DA GESTÃO) | B75: EXBOSS DESENVOLVIMENTO DE PESSOAS E ORGANIZAÇÕES EIRELI - ME | C75: 20139641/0001-39 | D75: 1 | E75: 2020-02-18 | F75: 2020-02-18 | G75: NO PAÍS | H75: ALEXANDRE PORTO MENDES DE SOUZA | I75: CONTRATAÇÃO | J75: 136.63 | K75: 0 | L75: 79.35 | M75: =SUM(J75:L75) -> 215.98 | N75: TEMA DEFINIDO NO GUIA DE CONHECIMENTOS DA ANTT - EIXO TEMÁTICO/GRUPO DE CONHECIMENTO: DESENVOLVIMENTO INSTITUCIONAL/MODELOS DE GESTÃO
A76: CONVENÇÃO ANUAL PARA APRESENTAÇÃO DOS RESULTADOS DA ANTT (O FUTURO DO TRABALLHO E DA GESTÃO) | B76: EXBOSS DESENVOLVIMENTO DE PESSOAS E ORGANIZAÇÕES EIRELI - ME | C76: 20139641/0001-39 | D76: 1 | E76: 2020-02-18 | F76: 2020-02-18 | G76: NO PAÍS | H76: ALINE FEITOSA LOPES | I76: CONTRATAÇÃO | J76: 136.63 | K76: 0 | L76: 34.18 | M76: =SUM(J76:L76) -> 170.81 | N76: TEMA DEFINIDO NO GUIA DE CONHECIMENTOS DA ANTT - EIXO TEMÁTICO/GRUPO DE CONHECIMENTO: DESENVOLVIMENTO INSTITUCIONAL/MODELOS DE GESTÃO
A77: CONVENÇÃO ANUAL PARA APRESENTAÇÃO DOS RESULTADOS DA ANTT (O FUTURO DO TRABALLHO E DA GESTÃO) | B77: EXBOSS DESENVOLVIMENTO DE PESSOAS E ORGANIZAÇÕES EIRELI - ME | C77: 20139641/0001-39 | D77: 1 | E77: 2020-02-18 | F77: 2020-02-18 | G77: NO PAÍS | H77: ALISSON SILVA DE ASEVEDO | I77: CONTRATAÇÃO | J77: 136.63 | K77: 0 | L77: 65.53 | M77: =SUM(J77:L77) -> 202.16 | N77: TEMA DEFINIDO NO GUIA DE CONHECIMENTOS DA ANTT - EIXO TEMÁTICO/GRUPO DE CONHECIMENTO: DESENVOLVIMENTO INSTITUCIONAL/MODELOS DE GESTÃO
A78: CONVENÇÃO ANUAL PARA APRESENTAÇÃO DOS RESULTADOS DA ANTT (O FUTURO DO TRABALLHO E DA GESTÃO) | B78: EXBOSS DESENVOLVIMENTO DE PESSOAS E ORGANIZAÇÕES EIRELI - ME | C78: 20139641/0001-39 | D78: 1 | E78: 2020-02-18 | F78: 2020-02-18 | G78: NO PAÍS | H78: ANA BEATRIZ RODRIGUES CASTRO | I78: CONTRATAÇÃO | J78: 136.63 | K78: 0 | L78: 75.2 | M78: =SUM(J78:L78) -> 211.83 | N78: TEMA DEFINIDO NO GUIA DE CONHECIMENTOS DA ANTT - EIXO TEMÁTICO/GRUPO DE CONHECIMENTO: DESENVOLVIMENTO INSTITUCIONAL/MODELOS DE GESTÃO
A79: CONVENÇÃO ANUAL PARA APRESENTAÇÃO DOS RESULTADOS DA ANTT (O FUTURO DO TRABALLHO E DA GESTÃO) | B79: EXBOSS DESENVOLVIMENTO DE PESSOAS E ORGANIZAÇÕES EIRELI - ME | C79: 20139641/0001-39 | D79: 1 | E79: 2020-02-18 | F79: 2020-02-18 | G79: NO PAÍS | H79: ANA CLAUDIA SILVEIRA TORRES | I79: CONTRATAÇÃO | J79: 136.63 | K79: 0 | L79: 73.12 | M79: =SUM(J79:L79) -> 209.75 | N79: TEMA DEFINIDO NO GUIA DE CONHECIMENTOS DA ANTT - EIXO TEMÁTICO/GRUPO DE CONHECIMENTO: DESENVOLVIMENTO INSTITUCIONAL/MODELOS DE GESTÃO
A80: CONVENÇÃO ANUAL PARA APRESENTAÇÃO DOS RESULTADOS DA ANTT (O FUTURO DO TRABALLHO E DA GESTÃO) | B80: EXBOSS DESENVOLVIMENTO DE PESSOAS E ORGANIZAÇÕES EIRELI - ME | C80: 20139641/0001-39 | D80: 1 | E80: 2020-02-18 | F80: 2020-02-18 | G80: NO PAÍS | H80: ANA PATRÍCIA DA SILVA DE BRITO | I80: CONTRATAÇÃO | J80: 136.63 | K80: 0 | L80: 81.52 | M80: =SUM(J80:L80) -> 218.15 | N80: TEMA DEFINIDO NO GUIA DE CONHECIMENTOS DA ANTT - EIXO TEMÁTICO/GRUPO DE CONHECIMENTO: DESENVOLVIMENTO INSTITUCIONAL/MODELOS DE GESTÃO
A81: CONVENÇÃO ANUAL PARA APRESENTAÇÃO DOS RESULTADOS DA ANTT (O FUTURO DO TRABALLHO E DA GESTÃO) | B81: EXBOSS DESENVOLVIMENTO DE PESSOAS E ORGANIZAÇÕES EIRELI - ME | C81: 20139641/0001-39 | D81: 1 | E81: 2020-02-18 | F81: 2020-02-18 | G81: NO PAÍS | H81: ANA PAULA PEREIRA DE SOUSA ROCHA | I81: CONTRATAÇÃO | J81: 136.63 | K81: 0 | L81: 73.12 | M81: =SUM(J81:L81) -> 209.75 | N81: TEMA DEFINIDO NO GUIA DE CONHECIMENTOS DA ANTT - EIXO TEMÁTICO/GRUPO DE CONHECIMENTO: DESENVOLVIMENTO INSTITUCIONAL/MODELOS DE GESTÃO
A82: CONVENÇÃO ANUAL PARA APRESENTAÇÃO DOS RESULTADOS DA ANTT (O FUTURO DO TRABALLHO E DA GESTÃO) | B82: EXBOSS DESENVOLVIMENTO DE PESSOAS E ORGANIZAÇÕES EIRELI - ME | C82: 20139641/0001-39 | D82: 1 | E82: 2020-02-18 | F82: 2020-02-18 | G82: NO PAÍS | H82: ANDERSON GOMES MONTEIRO | I82: CONTRATAÇÃO | J82: 136.63 | K82: 0 | L82: 41.63 | M82: =SUM(J82:L82) -> 178.26 | N82: TEMA DEFINIDO NO GUIA DE CONHECIMENTOS DA ANTT - EIXO TEMÁTICO/GRUPO DE CONHECIMENTO: DESENVOLVIMENTO INSTITUCIONAL/MODELOS DE GESTÃO
A83: CONVENÇÃO ANUAL PARA APRESENTAÇÃO DOS RESULTADOS DA ANTT (O FUTURO DO TRABALLHO E DA GESTÃO) | B83: EXBOSS DESENVOLVIMENTO DE PESSOAS E ORGANIZAÇÕES EIRELI - ME | C83: 20139641/0001-39 | D83: 1 | E83: 2020-02-18 | F83: 2020-02-18 | G83: NO PAÍS | H83: ANDERSON LOUSAN DO NASCIMENTO POUBEL | I83: CONTRATAÇÃO | J83: 136.63 | K83: 0 | L83: 75.2 | M83: =SUM(J83:L83) -> 211.83 | N83: TEMA DEFINIDO NO GUIA DE CONHECIMENTOS DA ANTT - EIXO TEMÁTICO/GRUPO DE CONHECIMENTO: DESENVOLVIMENTO INSTITUCIONAL/MODELOS DE GESTÃO
A84: CONVENÇÃO ANUAL PARA APRESENTAÇÃO DOS RESULTADOS DA ANTT (O FUTURO DO TRABALLHO E DA GESTÃO) | B84: EXBOSS DESENVOLVIMENTO DE PESSOAS E ORGANIZAÇÕES EIRELI - ME | C84: 20139641/0001-39 | D84: 1 | E84: 2020-02-18 | F84: 2020-02-18 | G84: NO PAÍS | H84: ANDRE BOTIN NASCIMENTO | I84: CONTRATAÇÃO | J84: 136.63 | K84: 0 | L84: 69.52 | M84: =SUM(J84:L84) -> 206.15 | N84: TEMA DEFINIDO NO GUIA DE CONHECIMENTOS DA ANTT - EIXO TEMÁTICO/GRUPO DE CONHECIMENTO: DESENVOLVIMENTO INSTITUCIONAL/MODELOS DE GESTÃO
A85: CONVENÇÃO ANUAL PARA APRESENTAÇÃO DOS RESULTADOS DA ANTT (O FUTURO DO TRABALLHO E DA GESTÃO) | B85: EXBOSS DESENVOLVIMENTO DE PESSOAS E ORGANIZAÇÕES EIRELI - ME | C85: 20139641/0001-39 | D85: 1 | E85: 2020-02-18 | F85: 2020-02-18 | G85: NO PAÍS | H85: ANDRE DULCE GONCALVES MAIA | I85: CONTRATAÇÃO | J85: 136.63 | K85: 0 | L85: 85.58 | M85: =SUM(J85:L85) -> 222.21 | N85: TEMA DEFINIDO NO GUIA DE CONHECIMENTOS DA ANTT - EIXO TEMÁTICO/GRUPO DE CONHECIMENTO: DESENVOLVIMENTO INSTITUCIONAL/MODELOS DE GESTÃO
A86: CONVENÇÃO ANUAL PARA APRESENTAÇÃO DOS RESULTADOS DA ANTT (O FUTURO DO TRABALLHO E DA GESTÃO) | B86: EXBOSS DESENVOLVIMENTO DE PESSOAS E ORGANIZAÇÕES EIRELI - ME | C86: 20139641/0001-39 | D86: 1 | E86: 2020-02-18 | F86: 2020-02-18 | G86: NO PAÍS | H86: ANDRE LUIS BUSS | I86: CONTRATAÇÃO | J86: 136.63 | K86: 0 | L86: 43.77575 | M86: =SUM(J86:L86) -> 180.40575 | N86: TEMA DEFINIDO NO GUIA DE CONHECIMENTOS DA ANTT - EIXO TEMÁTICO/GRUPO DE CONHECIMENTO: DESENVOLVIMENTO INSTITUCIONAL/MODELOS DE GESTÃO
A87: CONVENÇÃO ANUAL PARA APRESENTAÇÃO DOS RESULTADOS DA ANTT (O FUTURO DO TRABALLHO E DA GESTÃO) | B87: EXBOSS DESENVOLVIMENTO DE PESSOAS E ORGANIZAÇÕES EIRELI - ME | C87: 20139641/0001-39 | D87: 1 | E87: 2020-02-18 | F87: 2020-02-18 | G87: NO PAÍS | H87: ANDRE RICARDO RODRIGUES | I87: CONTRATAÇÃO | J87: 136.63 | K87: 0 | L87: 39.55 | M87: =SUM(J87:L87) -> 176.18 | N87: TEMA DEFINIDO NO GUIA DE CONHECIMENTOS DA ANTT - EIXO TEMÁTICO/GRUPO DE CONHECIMENTO: DESENVOLVIMENTO INSTITUCIONAL/MODELOS DE GESTÃO
A88: CONVENÇÃO ANUAL PARA APRESENTAÇÃO DOS RESULTADOS DA ANTT (O FUTURO DO TRABALLHO E DA GESTÃO) | B88: EXBOSS DESENVOLVIMENTO DE PESSOAS E ORGANIZAÇÕES EIRELI - ME | C88: 20139641/0001-39 | D88: 1 | E88: 2020-02-18 | F88: 2020-02-18 | G88: NO PAÍS | H88: ANDRE SOUSA RAMOS | I88: CONTRATAÇÃO | J88: 136.63 | K88: 0 | L88: 75.2 | M88: =SUM(J88:L88) -> 211.83 | N88: TEMA DEFINIDO NO GUIA DE CONHECIMENTOS DA ANTT - EIXO TEMÁTICO/GRUPO DE CONHECIMENTO: DESENVOLVIMENTO INSTITUCIONAL/MODELOS DE GESTÃO
A89: CONVENÇÃO ANUAL PARA APRESENTAÇÃO DOS RESULTADOS DA ANTT (O FUTURO DO TRABALLHO E DA GESTÃO) | B89: EXBOSS DESENVOLVIMENTO DE PESSOAS E ORGANIZAÇÕES EIRELI - ME | C89: 20139641/0001-39 | D89: 1 | E89: 2020-02-18 | F89: 2020-02-18 | G89: NO PAÍS | H89: ANNA PAOLA ALLEONE LUKSEVICIUS | I89: CONTRATAÇÃO | J89: 136.63 | K89: 0 | L89: 83.50029167 | M89: =SUM(J89:L89) -> 220.1302917 | N89: TEMA DEFINIDO NO GUIA DE CONHECIMENTOS DA ANTT - EIXO TEMÁTICO/GRUPO DE CONHECIMENTO: DESENVOLVIMENTO INSTITUCIONAL/MODELOS DE GESTÃO
A90: CONVENÇÃO ANUAL PARA APRESENTAÇÃO DOS RESULTADOS DA ANTT (O FUTURO DO TRABALLHO E DA GESTÃO) | B90: EXBOSS DESENVOLVIMENTO DE PESSOAS E ORGANIZAÇÕES EIRELI - ME | C90: 20139641/0001-39 | D90: 1 | E90: 2020-02-18 | F90: 2020-02-18 | G90: NO PAÍS | H90: ANNA PAULA NUNES SVENDSEN PINHEIRO | I90: CONTRATAÇÃO | J90: 136.63 | K90: 0 | L90: 35.14 | M90: =SUM(J90:L90) -> 171.77 | N90: TEMA DEFINIDO NO GUIA DE CONHECIMENTOS DA ANTT - EIXO TEMÁTICO/GRUPO DE CONHECIMENTO: DESENVOLVIMENTO INSTITUCIONAL/MODELOS DE GESTÃO
A91: CONVENÇÃO ANUAL PARA APRESENTAÇÃO DOS RESULTADOS DA ANTT (O FUTURO DO TRABALLHO E DA GESTÃO) | B91: EXBOSS DESENVOLVIMENTO DE PESSOAS E ORGANIZAÇÕES EIRELI - ME | C91: 20139641/0001-39 | D91: 1 | E91: 2020-02-18 | F91: 2020-02-18 | G91: NO PAÍS | H91: ANTONIO GABRIEL DIAS DE ARAÚJO | I91: CONTRATAÇÃO | J91: 136.63 | K91: 0 | L91: 75.52 | M91: =SUM(J91:L91) -> 212.15 | N91: TEMA DEFINIDO NO GUIA DE CONHECIMENTOS DA ANTT - EIXO TEMÁTICO/GRUPO DE CONHECIMENTO: DESENVOLVIMENTO INSTITUCIONAL/MODELOS DE GESTÃO
A92: CONVENÇÃO ANUAL PARA APRESENTAÇÃO DOS RESULTADOS DA ANTT (O FUTURO DO TRABALLHO E DA GESTÃO) | B92: EXBOSS DESENVOLVIMENTO DE PESSOAS E ORGANIZAÇÕES EIRELI - ME | C92: 20139641/0001-39 | D92: 1 | E92: 2020-02-18 | F92: 2020-02-18 | G92: NO PAÍS | H92: ANTONIO SILVIO ALMEIDA DA SILVA | I92: CONTRATAÇÃO | J92: 136.63 | K92: 0 | L92: 35.78 | M92: =SUM(J92:L92) -> 172.41 | N92: TEMA DEFINIDO NO GUIA DE CONHECIMENTOS DA ANTT - EIXO TEMÁTICO/GRUPO DE CONHECIMENTO: DESENVOLVIMENTO INSTITUCIONAL/MODELOS DE GESTÃO
A93: CONVENÇÃO ANUAL PARA APRESENTAÇÃO DOS RESULTADOS DA ANTT (O FUTURO DO TRABALLHO E DA GESTÃO) | B93: EXBOSS DESENVOLVIMENTO DE PESSOAS E ORGANIZAÇÕES EIRELI - ME | C93: 20139641/0001-39 | D93: 1 | E93: 2020-02-18 | F93: 2020-02-18 | G93: NO PAÍS | H93: ARAO PARNES | I93: CONTRATAÇÃO | J93: 136.63 | K93: 0 | L93: 47.11 | M93: =SUM(J93:L93) -> 183.74 | N93: TEMA DEFINIDO NO GUIA DE CONHECIMENTOS DA ANTT - EIXO TEMÁTICO/GRUPO DE CONHECIMENTO: DESENVOLVIMENTO INSTITUCIONAL/MODELOS DE GESTÃO
A94: CONVENÇÃO ANUAL PARA APRESENTAÇÃO DOS RESULTADOS DA ANTT (O FUTURO DO TRABALLHO E DA GESTÃO) | B94: EXBOSS DESENVOLVIMENTO DE PESSOAS E ORGANIZAÇÕES EIRELI - ME | C94: 20139641/0001-39 | D94: 1 | E94: 2020-02-18 | F94: 2020-02-18 | G94: NO PAÍS | H94: AUGUSTO BARBOZA DA SILVA | I94: CONTRATAÇÃO | J94: 136.63 | K94: 0 | L94: 9.94 | M94: =SUM(J94:L94) -> 146.57 | N94: TEMA DEFINIDO NO GUIA DE CONHECIMENTOS DA ANTT - EIXO TEMÁTICO/GRUPO DE CONHECIMENTO: DESENVOLVIMENTO INSTITUCIONAL/MODELOS DE GESTÃO
A95: CONVENÇÃO ANUAL PARA APRESENTAÇÃO DOS RESULTADOS DA ANTT (O FUTURO DO TRABALLHO E DA GESTÃO) | B95: EXBOSS DESENVOLVIMENTO DE PESSOAS E ORGANIZAÇÕES EIRELI - ME | C95: 20139641/0001-39 | D95: 1 | E95: 2020-02-18 | F95: 2020-02-18 | G95: NO PAÍS | H95: AUREA FERNANDA DE BRITO LOIOLA AGUIAR | I95: CONTRATAÇÃO | J95: 136.63 | K95: 0 | L95: 87.65 | M95: =SUM(J95:L95) -> 224.28 | N95: TEMA DEFINIDO NO GUIA DE CONHECIMENTOS DA ANTT - EIXO TEMÁTICO/GRUPO DE CONHECIMENTO: DESENVOLVIMENTO INSTITUCIONAL/MODELOS DE GESTÃO
A96: CONVENÇÃO ANUAL PARA APRESENTAÇÃO DOS RESULTADOS DA ANTT (O FUTURO DO TRABALLHO E DA GESTÃO) | B96: EXBOSS DESENVOLVIMENTO DE PESSOAS E ORGANIZAÇÕES EIRELI - ME | C96: 20139641/0001-39 | D96: 1 | E96: 2020-02-18 | F96: 2020-02-18 | G96: NO PAÍS | H96: BASILIO MILITANI NETO | I96: CONTRATAÇÃO | J96: 136.63 | K96: 0 | L96: 41.63 | M96: =SUM(J96:L96) -> 178.26 | N96: TEMA DEFINIDO NO GUIA DE CONHECIMENTOS DA ANTT - EIXO TEMÁTICO/GRUPO DE CONHECIMENTO: DESENVOLVIMENTO INSTITUCIONAL/MODELOS DE GESTÃO
A97: CONVENÇÃO ANUAL PARA APRESENTAÇÃO DOS RESULTADOS DA ANTT (O FUTURO DO TRABALLHO E DA GESTÃO) | B97: EXBOSS DESENVOLVIMENTO DE PESSOAS E ORGANIZAÇÕES EIRELI - ME | C97: 20139641/0001-39 | D97: 1 | E97: 2020-02-18 | F97: 2020-02-18 | G97: NO PAÍS | H97: BRUNO DE ARAUJO COLARES | I97: CONTRATAÇÃO | J97: 136.63 | K97: 0 | L97: 71.05 | M97: =SUM(J97:L97) -> 207.68 | N97: TEMA DEFINIDO NO GUIA DE CONHECIMENTOS DA ANTT - EIXO TEMÁTICO/GRUPO DE CONHECIMENTO: DESENVOLVIMENTO INSTITUCIONAL/MODELOS DE GESTÃO
A98: CONVENÇÃO ANUAL PARA APRESENTAÇÃO DOS RESULTADOS DA ANTT (O FUTURO DO TRABALLHO E DA GESTÃO) | B98: EXBOSS DESENVOLVIMENTO DE PESSOAS E ORGANIZAÇÕES EIRELI - ME | C98: 20139641/0001-39 | D98: 1 | E98: 2020-02-18 | F98: 2020-02-18 | G98: NO PAÍS | H98: BRUNO RIBEIRO ALVARENGA | I98: CONTRATAÇÃO | J98: 136.63 | K98: 0 | L98: 87.65 | M98: =SUM(J98:L98) -> 224.28 | N98: TEMA DEFINIDO NO GUIA DE CONHECIMENTOS DA ANTT - EIXO TEMÁTICO/GRUPO DE CONHECIMENTO: DESENVOLVIMENTO INSTITUCIONAL/MODELOS DE GESTÃO
A99: CONVENÇÃO ANUAL PARA APRESENTAÇÃO DOS RESULTADOS DA ANTT (O FUTURO DO TRABALLHO E DA GESTÃO) | B99: EXBOSS DESENVOLVIMENTO DE PESSOAS E ORGANIZAÇÕES EIRELI - ME | C99: 20139641/0001-39 | D99: 1 | E99: 2020-02-18 | F99: 2020-02-18 | G99: NO PAÍS | H99: CAIO CESAR NASCIMENTO NOGUEIRA | I99: CONTRATAÇÃO | J99: 136.63 | K99: 0 | L99: 58.11 | M99: =SUM(J99:L99) -> 194.74 | N99: TEMA DEFINIDO NO GUIA DE CONHECIMENTOS DA ANTT - EIXO TEMÁTICO/GRUPO DE CONHECIMENTO: DESENVOLVIMENTO INSTITUCIONAL/MODELOS DE GESTÃO
A100: CONVENÇÃO ANUAL PARA APRESENTAÇÃO DOS RESULTADOS DA ANTT (O FUTURO DO TRABALLHO E DA GESTÃO) | B100: EXBOSS DESENVOLVIMENTO DE PESSOAS E ORGANIZAÇÕES EIRELI - ME | C100: 20139641/0001-39 | D100: 1 | E100: 2020-02-18 | F100: 2020-02-18 | G100: NO PAÍS | H100: CANDIDO MANOEL FERNANDES PORTO | I100: CONTRATAÇÃO | J100: 136.63 | K100: 0 | L100: 73.12 | M100: =SUM(J100:L100) -> 209.75 | N100: TEMA DEFINIDO NO GUIA DE CONHECIMENTOS DA ANTT - EIXO TEMÁTICO/GRUPO DE CONHECIMENTO: DESENVOLVIMENTO INSTITUCIONAL/MODELOS DE GESTÃO
A101: CONVENÇÃO ANUAL PARA APRESENTAÇÃO DOS RESULTADOS DA ANTT (O FUTURO DO TRABALLHO E DA GESTÃO) | B101: EXBOSS DESENVOLVIMENTO DE PESSOAS E ORGANIZAÇÕES EIRELI - ME | C101: 20139641/0001-39 | D101: 1 | E101: 2020-02-18 | F101: 2020-02-18 | G101: NO PAÍS | H101: CARLOS ROBERTO ALVISI JUNIOR | I101: CONTRATAÇÃO | J101: 136.63 | K101: 0 | L101: 80.86 | M101: =SUM(J101:L101) -> 217.49 | N101: TEMA DEFINIDO NO GUIA DE CONHECIMENTOS DA ANTT - EIXO TEMÁTICO/GRUPO DE CONHECIMENTO: DESENVOLVIMENTO INSTITUCIONAL/MODELOS DE GESTÃO
A102: CONVENÇÃO ANUAL PARA APRESENTAÇÃO DOS RESULTADOS DA ANTT (O FUTURO DO TRABALLHO E DA GESTÃO) | B102: EXBOSS DESENVOLVIMENTO DE PESSOAS E ORGANIZAÇÕES EIRELI - ME | C102: 20139641/0001-39 | D102: 1 | E102: 2020-02-18 | F102: 2020-02-18 | G102: NO PAÍS | H102: CELYVANIA MALTA DE BRITO | I102: CONTRATAÇÃO | J102: 136.63 | K102: 0 | L102: 135.56 | M102: =SUM(J102:L102) -> 272.19 | N102: TEMA DEFINIDO NO GUIA DE CONHECIMENTOS DA ANTT - EIXO TEMÁTICO/GRUPO DE CONHECIMENTO: DESENVOLVIMENTO INSTITUCIONAL/MODELOS DE GESTÃO
A103: CONVENÇÃO ANUAL PARA APRESENTAÇÃO DOS RESULTADOS DA ANTT (O FUTURO DO TRABALLHO E DA GESTÃO) | B103: EXBOSS DESENVOLVIMENTO DE PESSOAS E ORGANIZAÇÕES EIRELI - ME | C103: 20139641/0001-39 | D103: 1 | E103: 2020-02-18 | F103: 2020-02-18 | G103: NO PAÍS | H103: CLAUDIA FATIMA DA FONSECA ALVES | I103: CONTRATAÇÃO | J103: 136.63 | K103: 0 | L103: 79.52 | M103: =SUM(J103:L103) -> 216.15 | N103: TEMA DEFINIDO NO GUIA DE CONHECIMENTOS DA ANTT - EIXO TEMÁTICO/GRUPO DE CONHECIMENTO: DESENVOLVIMENTO INSTITUCIONAL/MODELOS DE GESTÃO
A104: CONVENÇÃO ANUAL PARA APRESENTAÇÃO DOS RESULTADOS DA ANTT (O FUTURO DO TRABALLHO E DA GESTÃO) | B104: EXBOSS DESENVOLVIMENTO DE PESSOAS E ORGANIZAÇÕES EIRELI - ME | C104: 20139641/0001-39 | D104: 1 | E104: 2020-02-18 | F104: 2020-02-18 | G104: NO PAÍS | H104: CLAUDIO TIYOSHI MIURA | I104: CONTRATAÇÃO | J104: 136.63 | K104: 0 | L104: 73.12 | M104: =SUM(J104:L104) -> 209.75 | N104: TEMA DEFINIDO NO GUIA DE CONHECIMENTOS DA ANTT - EIXO TEMÁTICO/GRUPO DE CONHECIMENTO: DESENVOLVIMENTO INSTITUCIONAL/MODELOS DE GESTÃO
A105: CONVENÇÃO ANUAL PARA APRESENTAÇÃO DOS RESULTADOS DA ANTT (O FUTURO DO TRABALLHO E DA GESTÃO) | B105: EXBOSS DESENVOLVIMENTO DE PESSOAS E ORGANIZAÇÕES EIRELI - ME | C105: 20139641/0001-39 | D105: 1 | E105: 2020-02-18 | F105: 2020-02-18 | G105: NO PAÍS | H105: CLEBER DIAS DA SILVA JUNIOR | I105: CONTRATAÇÃO | J105: 136.63 | K105: 0 | L105: 75.52 | M105: =SUM(J105:L105) -> 212.15 | N105: TEMA DEFINIDO NO GUIA DE CONHECIMENTOS DA ANTT - EIXO TEMÁTICO/GRUPO DE CONHECIMENTO: DESENVOLVIMENTO INSTITUCIONAL/MODELOS DE GESTÃO
A106: CONVENÇÃO ANUAL PARA APRESENTAÇÃO DOS RESULTADOS DA ANTT (O FUTURO DO TRABALLHO E DA GESTÃO) | B106: EXBOSS DESENVOLVIMENTO DE PESSOAS E ORGANIZAÇÕES EIRELI - ME | C106: 20139641/0001-39 | D106: 1 | E106: 2020-02-18 | F106: 2020-02-18 | G106: NO PAÍS | H106: CRISTIANE LUSTOSA GUIMARAES FRANCA | I106: CONTRATAÇÃO | J106: 136.63 | K106: 0 | L106: 34.86 | M106: =SUM(J106:L106) -> 171.49 | N106: TEMA DEFINIDO NO GUIA DE CONHECIMENTOS DA ANTT - EIXO TEMÁTICO/GRUPO DE CONHECIMENTO: DESENVOLVIMENTO INSTITUCIONAL/MODELOS DE GESTÃO
A107: CONVENÇÃO ANUAL PARA APRESENTAÇÃO DOS RESULTADOS DA ANTT (O FUTURO DO TRABALLHO E DA GESTÃO) | B107: EXBOSS DESENVOLVIMENTO DE PESSOAS E ORGANIZAÇÕES EIRELI - ME | C107: 20139641/0001-39 | D107: 1 | E107: 2020-02-18 | F107: 2020-02-18 | G107: NO PAÍS | H107: CRISTIANE PACHECO LOURENCO | I107: CONTRATAÇÃO | J107: 136.63 | K107: 0 | L107: 81.42 | M107: =SUM(J107:L107) -> 218.05 | N107: TEMA DEFINIDO NO GUIA DE CONHECIMENTOS DA ANTT - EIXO TEMÁTICO/GRUPO DE CONHECIMENTO: DESENVOLVIMENTO INSTITUCIONAL/MODELOS DE GESTÃO
A108: CONVENÇÃO ANUAL PARA APRESENTAÇÃO DOS RESULTADOS DA ANTT (O FUTURO DO TRABALLHO E DA GESTÃO) | B108: EXBOSS DESENVOLVIMENTO DE PESSOAS E ORGANIZAÇÕES EIRELI - ME | C108: 20139641/0001-39 | D108: 1 | E108: 2020-02-18 | F108: 2020-02-18 | G108: NO PAÍS | H108: CRISTIANE SOUSA DE OLIVEIRA | I108: CONTRATAÇÃO | J108: 136.63 | K108: 0 | L108: 30.88 | M108: =SUM(J108:L108) -> 167.51 | N108: TEMA DEFINIDO NO GUIA DE CONHECIMENTOS DA ANTT - EIXO TEMÁTICO/GRUPO DE CONHECIMENTO: DESENVOLVIMENTO INSTITUCIONAL/MODELOS DE GESTÃO
A109: CONVENÇÃO ANUAL PARA APRESENTAÇÃO DOS RESULTADOS DA ANTT (O FUTURO DO TRABALLHO E DA GESTÃO) | B109: EXBOSS DESENVOLVIMENTO DE PESSOAS E ORGANIZAÇÕES EIRELI - ME | C109: 20139641/0001-39 | D109: 1 | E109: 2020-02-18 | F109: 2020-02-18 | G109: NO PAÍS | H109: CRISTIANO DELLA GIUSTINA | I109: CONTRATAÇÃO | J109: 136.63 | K109: 0 | L109: 85.58 | M109: =SUM(J109:L109) -> 222.21 | N109: TEMA DEFINIDO NO GUIA DE CONHECIMENTOS DA ANTT - EIXO TEMÁTICO/GRUPO DE CONHECIMENTO: DESENVOLVIMENTO INSTITUCIONAL/MODELOS DE GESTÃO
A110: CONVENÇÃO ANUAL PARA APRESENTAÇÃO DOS RESULTADOS DA ANTT (O FUTURO DO TRABALLHO E DA GESTÃO) | B110: EXBOSS DESENVOLVIMENTO DE PESSOAS E ORGANIZAÇÕES EIRELI - ME | C110: 20139641/0001-39 | D110: 1 | E110: 2020-02-18 | F110: 2020-02-18 | G110: NO PAÍS | H110: CYNTHIA RUAS VIEIRA BRAYER | I110: CONTRATAÇÃO | J110: 136.63 | K110: 0 | L110: 75.2 | M110: =SUM(J110:L110) -> 211.83 | N110: TEMA DEFINIDO NO GUIA DE CONHECIMENTOS DA ANTT - EIXO TEMÁTICO/GRUPO DE CONHECIMENTO: DESENVOLVIMENTO INSTITUCIONAL/MODELOS DE GESTÃO
A111: CONVENÇÃO ANUAL PARA APRESENTAÇÃO DOS RESULTADOS DA ANTT (O FUTURO DO TRABALLHO E DA GESTÃO) | B111: EXBOSS DESENVOLVIMENTO DE PESSOAS E ORGANIZAÇÕES EIRELI - ME | C111: 20139641/0001-39 | D111: 1 | E111: 2020-02-18 | F111: 2020-02-18 | G111: NO PAÍS | H111: DANIEL DE OLIVEIRA SANTOS | I111: CONTRATAÇÃO | J111: 136.63 | K111: 0 | L111: 75.2 | M111: =SUM(J111:L111) -> 211.83 | N111: TEMA DEFINIDO NO GUIA DE CONHECIMENTOS DA ANTT - EIXO TEMÁTICO/GRUPO DE CONHECIMENTO: DESENVOLVIMENTO INSTITUCIONAL/MODELOS DE GESTÃO
A112: CONVENÇÃO ANUAL PARA APRESENTAÇÃO DOS RESULTADOS DA ANTT (O FUTURO DO TRABALLHO E DA GESTÃO) | B112: EXBOSS DESENVOLVIMENTO DE PESSOAS E ORGANIZAÇÕES EIRELI - ME | C112: 20139641/0001-39 | D112: 1 | E112: 2020-02-18 | F112: 2020-02-18 | G112: NO PAÍS | H112: DEBORA GOELZER FRAGA | I112: CONTRATAÇÃO | J112: 136.63 | K112: 0 | L112: 9.94 | M112: =SUM(J112:L112) -> 146.57 | N112: TEMA DEFINIDO NO GUIA DE CONHECIMENTOS DA ANTT - EIXO TEMÁTICO/GRUPO DE CONHECIMENTO: DESENVOLVIMENTO INSTITUCIONAL/MODELOS DE GESTÃO
A113: CONVENÇÃO ANUAL PARA APRESENTAÇÃO DOS RESULTADOS DA ANTT (O FUTURO DO TRABALLHO E DA GESTÃO) | B113: EXBOSS DESENVOLVIMENTO DE PESSOAS E ORGANIZAÇÕES EIRELI - ME | C113: 20139641/0001-39 | D113: 1 | E113: 2020-02-18 | F113: 2020-02-18 | G113: NO PAÍS | H113: DEBORA JIMENEZ DUARTE | I113: CONTRATAÇÃO | J113: 136.63 | K113: 0 | L113: 42.28 | M113: =SUM(J113:L113) -> 178.91 | N113: TEMA DEFINIDO NO GUIA DE CONHECIMENTOS DA ANTT - EIXO TEMÁTICO/GRUPO DE CONHECIMENTO: DESENVOLVIMENTO INSTITUCIONAL/MODELOS DE GESTÃO
A114: CONVENÇÃO ANUAL PARA APRESENTAÇÃO DOS RESULTADOS DA ANTT (O FUTURO DO TRABALLHO E DA GESTÃO) | B114: EXBOSS DESENVOLVIMENTO DE PESSOAS E ORGANIZAÇÕES EIRELI - ME | C114: 20139641/0001-39 | D114: 1 | E114: 2020-02-18 | F114: 2020-02-18 | G114: NO PAÍS | H114: DIEGO DASCANIO PEREZ MARQUES | I114: CONTRATAÇÃO | J114: 136.63 | K114: 0 | L114: 36.69 | M114: =SUM(J114:L114) -> 173.32 | N114: TEMA DEFINIDO NO GUIA DE CONHECIMENTOS DA ANTT - EIXO TEMÁTICO/GRUPO DE CONHECIMENTO: DESENVOLVIMENTO INSTITUCIONAL/MODELOS DE GESTÃO
A115: CONVENÇÃO ANUAL PARA APRESENTAÇÃO DOS RESULTADOS DA ANTT (O FUTURO DO TRABALLHO E DA GESTÃO) | B115: EXBOSS DESENVOLVIMENTO DE PESSOAS E ORGANIZAÇÕES EIRELI - ME | C115: 20139641/0001-39 | D115: 1 | E115: 2020-02-18 | F115: 2020-02-18 | G115: NO PAÍS | H115: DOUGLAS DOS SANTOS GASPARETO | I115: CONTRATAÇÃO | J115: 136.63 | K115: 0 | L115: 42.68329167 | M115: =SUM(J115:L115) -> 179.3132917 | N115: TEMA DEFINIDO NO GUIA DE CONHECIMENTOS DA ANTT - EIXO TEMÁTICO/GRUPO DE CONHECIMENTO: DESENVOLVIMENTO INSTITUCIONAL/MODELOS DE GESTÃO
A116: CONVENÇÃO ANUAL PARA APRESENTAÇÃO DOS RESULTADOS DA ANTT (O FUTURO DO TRABALLHO E DA GESTÃO) | B116: EXBOSS DESENVOLVIMENTO DE PESSOAS E ORGANIZAÇÕES EIRELI - ME | C116: 20139641/0001-39 | D116: 1 | E116: 2020-02-18 | F116: 2020-02-18 | G116: NO PAÍS | H116: DURVAL ANTONIO GUERRA VALENTE | I116: CONTRATAÇÃO | J116: 136.63 | K116: 0 | L116: 58.11 | M116: =SUM(J116:L116) -> 194.74 | N116: TEMA DEFINIDO NO GUIA DE CONHECIMENTOS DA ANTT - EIXO TEMÁTICO/GRUPO DE CONHECIMENTO: DESENVOLVIMENTO INSTITUCIONAL/MODELOS DE GESTÃO
A117: CONVENÇÃO ANUAL PARA APRESENTAÇÃO DOS RESULTADOS DA ANTT (O FUTURO DO TRABALLHO E DA GESTÃO) | B117: EXBOSS DESENVOLVIMENTO DE PESSOAS E ORGANIZAÇÕES EIRELI - ME | C117: 20139641/0001-39 | D117: 1 | E117: 2020-02-18 | F117: 2020-02-18 | G117: NO PAÍS | H117: EDUARDO DE OLIVEIRA SILVA | I117: CONTRATAÇÃO | J117: 136.63 | K117: 0 | L117: 34.18 | M117: =SUM(J117:L117) -> 170.81 | N117: TEMA DEFINIDO NO GUIA DE CONHECIMENTOS DA ANTT - EIXO TEMÁTICO/GRUPO DE CONHECIMENTO: DESENVOLVIMENTO INSTITUCIONAL/MODELOS DE GESTÃO
A118: CONVENÇÃO ANUAL PARA APRESENTAÇÃO DOS RESULTADOS DA ANTT (O FUTURO DO TRABALLHO E DA GESTÃO) | B118: EXBOSS DESENVOLVIMENTO DE PESSOAS E ORGANIZAÇÕES EIRELI - ME | C118: 20139641/0001-39 | D118: 1 | E118: 2020-02-18 | F118: 2020-02-18 | G118: NO PAÍS | H118: ELLEN LILIPORY | I118: CONTRATAÇÃO | J118: 136.63 | K118: 0 | L118: 36.32 | M118: =SUM(J118:L118) -> 172.95 | N118: TEMA DEFINIDO NO GUIA DE CONHECIMENTOS DA ANTT - EIXO TEMÁTICO/GRUPO DE CONHECIMENTO: DESENVOLVIMENTO INSTITUCIONAL/MODELOS DE GESTÃO
A119: CONVENÇÃO ANUAL PARA APRESENTAÇÃO DOS RESULTADOS DA ANTT (O FUTURO DO TRABALLHO E DA GESTÃO) | B119: EXBOSS DESENVOLVIMENTO DE PESSOAS E ORGANIZAÇÕES EIRELI - ME | C119: 20139641/0001-39 | D119: 1 | E119: 2020-02-18 | F119: 2020-02-18 | G119: NO PAÍS | H119: EMANUELE BANDEIRA CARVALHO DE LIMA | I119: CONTRATAÇÃO | J119: 136.63 | K119: 0 | L119: 36.69 | M119: =SUM(J119:L119) -> 173.32 | N119: TEMA DEFINIDO NO GUIA DE CONHECIMENTOS DA ANTT - EIXO TEMÁTICO/GRUPO DE CONHECIMENTO: DESENVOLVIMENTO INSTITUCIONAL/MODELOS DE GESTÃO
A120: CONVENÇÃO ANUAL PARA APRESENTAÇÃO DOS RESULTADOS DA ANTT (O FUTURO DO TRABALLHO E DA GESTÃO) | B120: EXBOSS DESENVOLVIMENTO DE PESSOAS E ORGANIZAÇÕES EIRELI - ME | C120: 20139641/0001-39 | D120: 1 | E120: 2020-02-18 | F120: 2020-02-18 | G120: NO PAÍS | H120: EVANDRO TORQUATO SOBRADO | I120: CONTRATAÇÃO | J120: 136.63 | K120: 0 | L120: 58.11 | M120: =SUM(J120:L120) -> 194.74 | N120: TEMA DEFINIDO NO GUIA DE CONHECIMENTOS DA ANTT - EIXO TEMÁTICO/GRUPO DE CONHECIMENTO: DESENVOLVIMENTO INSTITUCIONAL/MODELOS DE GESTÃO
A121: CONVENÇÃO ANUAL PARA APRESENTAÇÃO DOS RESULTADOS DA ANTT (O FUTURO DO TRABALLHO E DA GESTÃO) | B121: EXBOSS DESENVOLVIMENTO DE PESSOAS E ORGANIZAÇÕES EIRELI - ME | C121: 20139641/0001-39 | D121: 1 | E121: 2020-02-18 | F121: 2020-02-18 | G121: NO PAÍS | H121: EVERALDO VALENGA ALVES | I121: CONTRATAÇÃO | J121: 136.63 | K121: 0 | L121: 73.12 | M121: =SUM(J121:L121) -> 209.75 | N121: TEMA DEFINIDO NO GUIA DE CONHECIMENTOS DA ANTT - EIXO TEMÁTICO/GRUPO DE CONHECIMENTO: DESENVOLVIMENTO INSTITUCIONAL/MODELOS DE GESTÃO
A122: CONVENÇÃO ANUAL PARA APRESENTAÇÃO DOS RESULTADOS DA ANTT (O FUTURO DO TRABALLHO E DA GESTÃO) | B122: EXBOSS DESENVOLVIMENTO DE PESSOAS E ORGANIZAÇÕES EIRELI - ME | C122: 20139641/0001-39 | D122: 1 | E122: 2020-02-18 | F122: 2020-02-18 | G122: NO PAÍS | H122: EWERTON LARANJO MENDONÇA | I122: CONTRATAÇÃO | J122: 136.63 | K122: 0 | L122: 94.14 | M122: =SUM(J122:L122) -> 230.77 | N122: TEMA DEFINIDO NO GUIA DE CONHECIMENTOS DA ANTT - EIXO TEMÁTICO/GRUPO DE CONHECIMENTO: DESENVOLVIMENTO INSTITUCIONAL/MODELOS DE GESTÃO
A123: CONVENÇÃO ANUAL PARA APRESENTAÇÃO DOS RESULTADOS DA ANTT (O FUTURO DO TRABALLHO E DA GESTÃO) | B123: EXBOSS DESENVOLVIMENTO DE PESSOAS E ORGANIZAÇÕES EIRELI - ME | C123: 20139641/0001-39 | D123: 1 | E123: 2020-02-18 | F123: 2020-02-18 | G123: NO PAÍS | H123: FABIANA CARVALHO DA SILVA | I123: CONTRATAÇÃO | J123: 136.63 | K123: 0 | L123: 43.77575 | M123: =SUM(J123:L123) -> 180.40575 | N123: TEMA DEFINIDO NO GUIA DE CONHECIMENTOS DA ANTT - EIXO TEMÁTICO/GRUPO DE CONHECIMENTO: DESENVOLVIMENTO INSTITUCIONAL/MODELOS DE GESTÃO
A124: CONVENÇÃO ANUAL PARA APRESENTAÇÃO DOS RESULTADOS DA ANTT (O FUTURO DO TRABALLHO E DA GESTÃO) | B124: EXBOSS DESENVOLVIMENTO DE PESSOAS E ORGANIZAÇÕES EIRELI - ME | C124: 20139641/0001-39 | D124: 1 | E124: 2020-02-18 | F124: 2020-02-18 | G124: NO PAÍS | H124: FABIANE SARAIVA GONCALVES MARIANO | I124: CONTRATAÇÃO | J124: 136.63 | K124: 0 | L124: 15.17 | M124: =SUM(J124:L124) -> 151.8 | N124: TEMA DEFINIDO NO GUIA DE CONHECIMENTOS DA ANTT - EIXO TEMÁTICO/GRUPO DE CONHECIMENTO: DESENVOLVIMENTO INSTITUCIONAL/MODELOS DE GESTÃO
A125: CONVENÇÃO ANUAL PARA APRESENTAÇÃO DOS RESULTADOS DA ANTT (O FUTURO DO TRABALLHO E DA GESTÃO) | B125: EXBOSS DESENVOLVIMENTO DE PESSOAS E ORGANIZAÇÕES EIRELI - ME | C125: 20139641/0001-39 | D125: 1 | E125: 2020-02-18 | F125: 2020-02-18 | G125: NO PAÍS | H125: FABIANO FLEXA NOGUEIRA | I125: CONTRATAÇÃO | J125: 136.63 | K125: 0 | L125: 36.32 | M125: =SUM(J125:L125) -> 172.95 | N125: TEMA DEFINIDO NO GUIA DE CONHECIMENTOS DA ANTT - EIXO TEMÁTICO/GRUPO DE CONHECIMENTO: DESENVOLVIMENTO INSTITUCIONAL/MODELOS DE GESTÃO
A126: CONVENÇÃO ANUAL PARA APRESENTAÇÃO DOS RESULTADOS DA ANTT (O FUTURO DO TRABALLHO E DA GESTÃO) | B126: EXBOSS DESENVOLVIMENTO DE PESSOAS E ORGANIZAÇÕES EIRELI - ME | C126: 20139641/0001-39 | D126: 1 | E126: 2020-02-18 | F126: 2020-02-18 | G126: NO PAÍS | H126: FELIPE BRAGANCA ITABORAHY | I126: CONTRATAÇÃO | J126: 136.63 | K126: 0 | L126: 114.66 | M126: =SUM(J126:L126) -> 251.29 | N126: TEMA DEFINIDO NO GUIA DE CONHECIMENTOS DA ANTT - EIXO TEMÁTICO/GRUPO DE CONHECIMENTO: DESENVOLVIMENTO INSTITUCIONAL/MODELOS DE GESTÃO
A127: CONVENÇÃO ANUAL PARA APRESENTAÇÃO DOS RESULTADOS DA ANTT (O FUTURO DO TRABALLHO E DA GESTÃO) | B127: EXBOSS DESENVOLVIMENTO DE PESSOAS E ORGANIZAÇÕES EIRELI - ME | C127: 20139641/0001-39 | D127: 1 | E127: 2020-02-18 | F127: 2020-02-18 | G127: NO PAÍS | H127: FELIPE FREIRE DA COSTA | I127: CONTRATAÇÃO | J127: 136.63 | K127: 0 | L127: 85.58 | M127: =SUM(J127:L127) -> 222.21 | N127: TEMA DEFINIDO NO GUIA DE CONHECIMENTOS DA ANTT - EIXO TEMÁTICO/GRUPO DE CONHECIMENTO: DESENVOLVIMENTO INSTITUCIONAL/MODELOS DE GESTÃO
A128: CONVENÇÃO ANUAL PARA APRESENTAÇÃO DOS RESULTADOS DA ANTT (O FUTURO DO TRABALLHO E DA GESTÃO) | B128: EXBOSS DESENVOLVIMENTO DE PESSOAS E ORGANIZAÇÕES EIRELI - ME | C128: 20139641/0001-39 | D128: 1 | E128: 2020-02-18 | F128: 2020-02-18 | G128: NO PAÍS | H128: FERNANDA DE GODOY PENTEADO | I128: CONTRATAÇÃO | J128: 136.63 | K128: 0 | L128: 81.42 | M128: =SUM(J128:L128) -> 218.05 | N128: TEMA DEFINIDO NO GUIA DE CONHECIMENTOS DA ANTT - EIXO TEMÁTICO/GRUPO DE CONHECIMENTO: DESENVOLVIMENTO INSTITUCIONAL/MODELOS DE GESTÃO
A129: CONVENÇÃO ANUAL PARA APRESENTAÇÃO DOS RESULTADOS DA ANTT (O FUTURO DO TRABALLHO E DA GESTÃO) | B129: EXBOSS DESENVOLVIMENTO DE PESSOAS E ORGANIZAÇÕES EIRELI - ME | C129: 20139641/0001-39 | D129: 1 | E129: 2020-02-18 | F129: 2020-02-18 | G129: NO PAÍS | H129: FERNANDA MARIA MACHADO ANDRADE NIEMEYER | I129: CONTRATAÇÃO | J129: 136.63 | K129: 0 | L129: 73.12 | M129: =SUM(J129:L129) -> 209.75 | N129: TEMA DEFINIDO NO GUIA DE CONHECIMENTOS DA ANTT - EIXO TEMÁTICO/GRUPO DE CONHECIMENTO: DESENVOLVIMENTO INSTITUCIONAL/MODELOS DE GESTÃO
A130: CONVENÇÃO ANUAL PARA APRESENTAÇÃO DOS RESULTADOS DA ANTT (O FUTURO DO TRABALLHO E DA GESTÃO) | B130: EXBOSS DESENVOLVIMENTO DE PESSOAS E ORGANIZAÇÕES EIRELI - ME | C130: 20139641/0001-39 | D130: 1 | E130: 2020-02-18 | F130: 2020-02-18 | G130: NO PAÍS | H130: FERNANDO ANDRADE SOLLERO | I130: CONTRATAÇÃO | J130: 136.63 | K130: 0 | L130: 79.37 | M130: =SUM(J130:L130) -> 216 | N130: TEMA DEFINIDO NO GUIA DE CONHECIMENTOS DA ANTT - EIXO TEMÁTICO/GRUPO DE CONHECIMENTO: DESENVOLVIMENTO INSTITUCIONAL/MODELOS DE GESTÃO
A131: CONVENÇÃO ANUAL PARA APRESENTAÇÃO DOS RESULTADOS DA ANTT (O FUTURO DO TRABALLHO E DA GESTÃO) | B131: EXBOSS DESENVOLVIMENTO DE PESSOAS E ORGANIZAÇÕES EIRELI - ME | C131: 20139641/0001-39 | D131: 1 | E131: 2020-02-18 | F131: 2020-02-18 | G131: NO PAÍS | H131: FERNANDO ANTONIO CABRAL | I131: CONTRATAÇÃO | J131: 136.63 | K131: 0 | L131: 37.62 | M131: =SUM(J131:L131) -> 174.25 | N131: TEMA DEFINIDO NO GUIA DE CONHECIMENTOS DA ANTT - EIXO TEMÁTICO/GRUPO DE CONHECIMENTO: DESENVOLVIMENTO INSTITUCIONAL/MODELOS DE GESTÃO
A132: CONVENÇÃO ANUAL PARA APRESENTAÇÃO DOS RESULTADOS DA ANTT (O FUTURO DO TRABALLHO E DA GESTÃO) | B132: EXBOSS DESENVOLVIMENTO DE PESSOAS E ORGANIZAÇÕES EIRELI - ME | C132: 20139641/0001-39 | D132: 1 | E132: 2020-02-18 | F132: 2020-02-18 | G132: NO PAÍS | H132: FERNANDO DE FREITAS BEZERRA | I132: CONTRATAÇÃO | J132: 136.63 | K132: 0 | L132: 73.12 | M132: =SUM(J132:L132) -> 209.75 | N132: TEMA DEFINIDO NO GUIA DE CONHECIMENTOS DA ANTT - EIXO TEMÁTICO/GRUPO DE CONHECIMENTO: DESENVOLVIMENTO INSTITUCIONAL/MODELOS DE GESTÃO
A133: CONVENÇÃO ANUAL PARA APRESENTAÇÃO DOS RESULTADOS DA ANTT (O FUTURO DO TRABALLHO E DA GESTÃO) | B133: EXBOSS DESENVOLVIMENTO DE PESSOAS E ORGANIZAÇÕES EIRELI - ME | C133: 20139641/0001-39 | D133: 1 | E133: 2020-02-18 | F133: 2020-02-18 | G133: NO PAÍS | H133: FLAVIA KLUPPEL CARRARA WOUTERS | I133: CONTRATAÇÃO | J133: 136.63 | K133: 0 | L133: 75.52 | M133: =SUM(J133:L133) -> 212.15 | N133: TEMA DEFINIDO NO GUIA DE CONHECIMENTOS DA ANTT - EIXO TEMÁTICO/GRUPO DE CONHECIMENTO: DESENVOLVIMENTO INSTITUCIONAL/MODELOS DE GESTÃO
A134: CONVENÇÃO ANUAL PARA APRESENTAÇÃO DOS RESULTADOS DA ANTT (O FUTURO DO TRABALLHO E DA GESTÃO) | B134: EXBOSS DESENVOLVIMENTO DE PESSOAS E ORGANIZAÇÕES EIRELI - ME | C134: 20139641/0001-39 | D134: 1 | E134: 2020-02-18 | F134: 2020-02-18 | G134: NO PAÍS | H134: FLAVIA ROCHA MELO | I134: CONTRATAÇÃO | J134: 136.63 | K134: 0 | L134: 58.11 | M134: =SUM(J134:L134) -> 194.74 | N134: TEMA DEFINIDO NO GUIA DE CONHECIMENTOS DA ANTT - EIXO TEMÁTICO/GRUPO DE CONHECIMENTO: DESENVOLVIMENTO INSTITUCIONAL/MODELOS DE GESTÃO
A135: CONVENÇÃO ANUAL PARA APRESENTAÇÃO DOS RESULTADOS DA ANTT (O FUTURO DO TRABALLHO E DA GESTÃO) | B135: EXBOSS DESENVOLVIMENTO DE PESSOAS E ORGANIZAÇÕES EIRELI - ME | C135: 20139641/0001-39 | D135: 1 | E135: 2020-02-18 | F135: 2020-02-18 | G135: NO PAÍS | H135: FRANCISCO JOSE MARQUES | I135: CONTRATAÇÃO | J135: 136.63 | K135: 0 | L135: 65.37 | M135: =SUM(J135:L135) -> 202 | N135: TEMA DEFINIDO NO GUIA DE CONHECIMENTOS DA ANTT - EIXO TEMÁTICO/GRUPO DE CONHECIMENTO: DESENVOLVIMENTO INSTITUCIONAL/MODELOS DE GESTÃO
A136: CONVENÇÃO ANUAL PARA APRESENTAÇÃO DOS RESULTADOS DA ANTT (O FUTURO DO TRABALLHO E DA GESTÃO) | B136: EXBOSS DESENVOLVIMENTO DE PESSOAS E ORGANIZAÇÕES EIRELI - ME | C136: 20139641/0001-39 | D136: 1 | E136: 2020-02-18 | F136: 2020-02-18 | G136: NO PAÍS | H136: FRANCISCO LEONARDO CARVALHO SOUSA | I136: CONTRATAÇÃO | J136: 136.63 | K136: 0 | L136: 35.78 | M136: =SUM(J136:L136) -> 172.41 | N136: TEMA DEFINIDO NO GUIA DE CONHECIMENTOS DA ANTT - EIXO TEMÁTICO/GRUPO DE CONHECIMENTO: DESENVOLVIMENTO INSTITUCIONAL/MODELOS DE GESTÃO
A137: CONVENÇÃO ANUAL PARA APRESENTAÇÃO DOS RESULTADOS DA ANTT (O FUTURO DO TRABALLHO E DA GESTÃO) | B137: EXBOSS DESENVOLVIMENTO DE PESSOAS E ORGANIZAÇÕES EIRELI - ME | C137: 20139641/0001-39 | D137: 1 | E137: 2020-02-18 | F137: 2020-02-18 | G137: NO PAÍS | H137: GERALDO LUIZ ANSELMO | I137: CONTRATAÇÃO | J137: 136.63 | K137: 0 | L137: 38.58 | M137: =SUM(J137:L137) -> 175.21 | N137: TEMA DEFINIDO NO GUIA DE CONHECIMENTOS DA ANTT - EIXO TEMÁTICO/GRUPO DE CONHECIMENTO: DESENVOLVIMENTO INSTITUCIONAL/MODELOS DE GESTÃO
A138: CONVENÇÃO ANUAL PARA APRESENTAÇÃO DOS RESULTADOS DA ANTT (O FUTURO DO TRABALLHO E DA GESTÃO) | B138: EXBOSS DESENVOLVIMENTO DE PESSOAS E ORGANIZAÇÕES EIRELI - ME | C138: 20139641/0001-39 | D138: 1 | E138: 2020-02-18 | F138: 2020-02-18 | G138: NO PAÍS | H138: GILSON GONCALVES DE MATOS | I138: CONTRATAÇÃO | J138: 136.63 | K138: 0 | L138: 73.12 | M138: =SUM(J138:L138) -> 209.75 | N138: TEMA DEFINIDO NO GUIA DE CONHECIMENTOS DA ANTT - EIXO TEMÁTICO/GRUPO DE CONHECIMENTO: DESENVOLVIMENTO INSTITUCIONAL/MODELOS DE GESTÃO
A139: CONVENÇÃO ANUAL PARA APRESENTAÇÃO DOS RESULTADOS DA ANTT (O FUTURO DO TRABALLHO E DA GESTÃO) | B139: EXBOSS DESENVOLVIMENTO DE PESSOAS E ORGANIZAÇÕES EIRELI - ME | C139: 20139641/0001-39 | D139: 1 | E139: 2020-02-18 | F139: 2020-02-18 | G139: NO PAÍS | H139: GUILHERME FREDERICO NUNES DE QUEIROZ | I139: CONTRATAÇÃO | J139: 136.63 | K139: 0 | L139: 35.78 | M139: =SUM(J139:L139) -> 172.41 | N139: TEMA DEFINIDO NO GUIA DE CONHECIMENTOS DA ANTT - EIXO TEMÁTICO/GRUPO DE CONHECIMENTO: DESENVOLVIMENTO INSTITUCIONAL/MODELOS DE GESTÃO
A140: CONVENÇÃO ANUAL PARA APRESENTAÇÃO DOS RESULTADOS DA ANTT (O FUTURO DO TRABALLHO E DA GESTÃO) | B140: EXBOSS DESENVOLVIMENTO DE PESSOAS E ORGANIZAÇÕES EIRELI - ME | C140: 20139641/0001-39 | D140: 1 | E140: 2020-02-18 | F140: 2020-02-18 | G140: NO PAÍS | H140: GUILHERME OLIVEIRA PIRES | I140: CONTRATAÇÃO | J140: 136.63 | K140: 0 | L140: 73.12 | M140: =SUM(J140:L140) -> 209.75 | N140: TEMA DEFINIDO NO GUIA DE CONHECIMENTOS DA ANTT - EIXO TEMÁTICO/GRUPO DE CONHECIMENTO: DESENVOLVIMENTO INSTITUCIONAL/MODELOS DE GESTÃO
A141: CONVENÇÃO ANUAL PARA APRESENTAÇÃO DOS RESULTADOS DA ANTT (O FUTURO DO TRABALLHO E DA GESTÃO) | B141: EXBOSS DESENVOLVIMENTO DE PESSOAS E ORGANIZAÇÕES EIRELI - ME | C141: 20139641/0001-39 | D141: 1 | E141: 2020-02-18 | F141: 2020-02-18 | G141: NO PAÍS | H141: HALEY MARIA DE SOUSA ALMEIDA | I141: CONTRATAÇÃO | J141: 136.63 | K141: 0 | L141: 76.49 | M141: =SUM(J141:L141) -> 213.12 | N141: TEMA DEFINIDO NO GUIA DE CONHECIMENTOS DA ANTT - EIXO TEMÁTICO/GRUPO DE CONHECIMENTO: DESENVOLVIMENTO INSTITUCIONAL/MODELOS DE GESTÃO
A142: CONVENÇÃO ANUAL PARA APRESENTAÇÃO DOS RESULTADOS DA ANTT (O FUTURO DO TRABALLHO E DA GESTÃO) | B142: EXBOSS DESENVOLVIMENTO DE PESSOAS E ORGANIZAÇÕES EIRELI - ME | C142: 20139641/0001-39 | D142: 1 | E142: 2020-02-18 | F142: 2020-02-18 | G142: NO PAÍS | H142: HELIO ROBERTO SILVA DE SOUSA | I142: CONTRATAÇÃO | J142: 136.63 | K142: 0 | L142: 41.63 | M142: =SUM(J142:L142) -> 178.26 | N142: TEMA DEFINIDO NO GUIA DE CONHECIMENTOS DA ANTT - EIXO TEMÁTICO/GRUPO DE CONHECIMENTO: DESENVOLVIMENTO INSTITUCIONAL/MODELOS DE GESTÃO
A143: CONVENÇÃO ANUAL PARA APRESENTAÇÃO DOS RESULTADOS DA ANTT (O FUTURO DO TRABALLHO E DA GESTÃO) | B143: EXBOSS DESENVOLVIMENTO DE PESSOAS E ORGANIZAÇÕES EIRELI - ME | C143: 20139641/0001-39 | D143: 1 | E143: 2020-02-18 | F143: 2020-02-18 | G143: NO PAÍS | H143: HENRIQUE DE AMORIM LEITE | I143: CONTRATAÇÃO | J143: 136.63 | K143: 0 | L143: 37.62 | M143: =SUM(J143:L143) -> 174.25 | N143: TEMA DEFINIDO NO GUIA DE CONHECIMENTOS DA ANTT - EIXO TEMÁTICO/GRUPO DE CONHECIMENTO: DESENVOLVIMENTO INSTITUCIONAL/MODELOS DE GESTÃO
A144: CONVENÇÃO ANUAL PARA APRESENTAÇÃO DOS RESULTADOS DA ANTT (O FUTURO DO TRABALLHO E DA GESTÃO) | B144: EXBOSS DESENVOLVIMENTO DE PESSOAS E ORGANIZAÇÕES EIRELI - ME | C144: 20139641/0001-39 | D144: 1 | E144: 2020-02-18 | F144: 2020-02-18 | G144: NO PAÍS | H144: IANA ARAUJO RODRIGUES | I144: CONTRATAÇÃO | J144: 136.63 | K144: 0 | L144: 75.2 | M144: =SUM(J144:L144) -> 211.83 | N144: TEMA DEFINIDO NO GUIA DE CONHECIMENTOS DA ANTT - EIXO TEMÁTICO/GRUPO DE CONHECIMENTO: DESENVOLVIMENTO INSTITUCIONAL/MODELOS DE GESTÃO
A145: CONVENÇÃO ANUAL PARA APRESENTAÇÃO DOS RESULTADOS DA ANTT (O FUTURO DO TRABALLHO E DA GESTÃO) | B145: EXBOSS DESENVOLVIMENTO DE PESSOAS E ORGANIZAÇÕES EIRELI - ME | C145: 20139641/0001-39 | D145: 1 | E145: 2020-02-18 | F145: 2020-02-18 | G145: NO PAÍS | H145: IANA HOLANDA RISUENHO | I145: CONTRATAÇÃO | J145: 136.63 | K145: 0 | L145: 65.53 | M145: =SUM(J145:L145) -> 202.16 | N145: TEMA DEFINIDO NO GUIA DE CONHECIMENTOS DA ANTT - EIXO TEMÁTICO/GRUPO DE CONHECIMENTO: DESENVOLVIMENTO INSTITUCIONAL/MODELOS DE GESTÃO
A146: CONVENÇÃO ANUAL PARA APRESENTAÇÃO DOS RESULTADOS DA ANTT (O FUTURO DO TRABALLHO E DA GESTÃO) | B146: EXBOSS DESENVOLVIMENTO DE PESSOAS E ORGANIZAÇÕES EIRELI - ME | C146: 20139641/0001-39 | D146: 1 | E146: 2020-02-18 | F146: 2020-02-18 | G146: NO PAÍS | H146: JANAINA DOS SANTOS | I146: CONTRATAÇÃO | J146: 136.63 | K146: 0 | L146: 87.65 | M146: =SUM(J146:L146) -> 224.28 | N146: TEMA DEFINIDO NO GUIA DE CONHECIMENTOS DA ANTT - EIXO TEMÁTICO/GRUPO DE CONHECIMENTO: DESENVOLVIMENTO INSTITUCIONAL/MODELOS DE GESTÃO
A147: CONVENÇÃO ANUAL PARA APRESENTAÇÃO DOS RESULTADOS DA ANTT (O FUTURO DO TRABALLHO E DA GESTÃO) | B147: EXBOSS DESENVOLVIMENTO DE PESSOAS E ORGANIZAÇÕES EIRELI - ME | C147: 20139641/0001-39 | D147: 1 | E147: 2020-02-18 | F147: 2020-02-18 | G147: NO PAÍS | H147: JEAN MAFRA DOS REIS | I147: CONTRATAÇÃO | J147: 136.63 | K147: 0 | L147: 87.65 | M147: =SUM(J147:L147) -> 224.28 | N147: TEMA DEFINIDO NO GUIA DE CONHECIMENTOS DA ANTT - EIXO TEMÁTICO/GRUPO DE CONHECIMENTO: DESENVOLVIMENTO INSTITUCIONAL/MODELOS DE GESTÃO
A148: CONVENÇÃO ANUAL PARA APRESENTAÇÃO DOS RESULTADOS DA ANTT (O FUTURO DO TRABALLHO E DA GESTÃO) | B148: EXBOSS DESENVOLVIMENTO DE PESSOAS E ORGANIZAÇÕES EIRELI - ME | C148: 20139641/0001-39 | D148: 1 | E148: 2020-02-18 | F148: 2020-02-18 | G148: NO PAÍS | H148: JOAO LUIZ NORONHA DA JORNADA | I148: CONTRATAÇÃO | J148: 136.63 | K148: 0 | L148: 62.86 | M148: =SUM(J148:L148) -> 199.49 | N148: TEMA DEFINIDO NO GUIA DE CONHECIMENTOS DA ANTT - EIXO TEMÁTICO/GRUPO DE CONHECIMENTO: DESENVOLVIMENTO INSTITUCIONAL/MODELOS DE GESTÃO
A149: CONVENÇÃO ANUAL PARA APRESENTAÇÃO DOS RESULTADOS DA ANTT (O FUTURO DO TRABALLHO E DA GESTÃO) | B149: EXBOSS DESENVOLVIMENTO DE PESSOAS E ORGANIZAÇÕES EIRELI - ME | C149: 20139641/0001-39 | D149: 1 | E149: 2020-02-18 | F149: 2020-02-18 | G149: NO PAÍS | H149: JOAO PAULO DE SOUZA | I149: CONTRATAÇÃO | J149: 136.63 | K149: 0 | L149: 42.68329167 | M149: =SUM(J149:L149) -> 179.3132917 | N149: TEMA DEFINIDO NO GUIA DE CONHECIMENTOS DA ANTT - EIXO TEMÁTICO/GRUPO DE CONHECIMENTO: DESENVOLVIMENTO INSTITUCIONAL/MODELOS DE GESTÃO
A150: CONVENÇÃO ANUAL PARA APRESENTAÇÃO DOS RESULTADOS DA ANTT (O FUTURO DO TRABALLHO E DA GESTÃO) | B150: EXBOSS DESENVOLVIMENTO DE PESSOAS E ORGANIZAÇÕES EIRELI - ME | C150: 20139641/0001-39 | D150: 1 | E150: 2020-02-18 | F150: 2020-02-18 | G150: NO PAÍS | H150: JOSÉ AIRES AMARAL FILHO | I150: CONTRATAÇÃO | J150: 136.63 | K150: 0 | L150: 42.68329167 | M150: =SUM(J150:L150) -> 179.3132917 | N150: TEMA DEFINIDO NO GUIA DE CONHECIMENTOS DA ANTT - EIXO TEMÁTICO/GRUPO DE CONHECIMENTO: DESENVOLVIMENTO INSTITUCIONAL/MODELOS DE GESTÃO
A151: CONVENÇÃO ANUAL PARA APRESENTAÇÃO DOS RESULTADOS DA ANTT (O FUTURO DO TRABALLHO E DA GESTÃO) | B151: EXBOSS DESENVOLVIMENTO DE PESSOAS E ORGANIZAÇÕES EIRELI - ME | C151: 20139641/0001-39 | D151: 1 | E151: 2020-02-18 | F151: 2020-02-18 | G151: NO PAÍS | H151: JOSE CARLOS MORAES TRINDADE | I151: CONTRATAÇÃO | J151: 136.63 | K151: 0 | L151: 36.32 | M151: =SUM(J151:L151) -> 172.95 | N151: TEMA DEFINIDO NO GUIA DE CONHECIMENTOS DA ANTT - EIXO TEMÁTICO/GRUPO DE CONHECIMENTO: DESENVOLVIMENTO INSTITUCIONAL/MODELOS DE GESTÃO
A152: CONVENÇÃO ANUAL PARA APRESENTAÇÃO DOS RESULTADOS DA ANTT (O FUTURO DO TRABALLHO E DA GESTÃO) | B152: EXBOSS DESENVOLVIMENTO DE PESSOAS E ORGANIZAÇÕES EIRELI - ME | C152: 20139641/0001-39 | D152: 1 | E152: 2020-02-18 | F152: 2020-02-18 | G152: NO PAÍS | H152: JOSE DA SILVA SANTOS | I152: CONTRATAÇÃO | J152: 136.63 | K152: 0 | L152: 43.77575 | M152: =SUM(J152:L152) -> 180.40575 | N152: TEMA DEFINIDO NO GUIA DE CONHECIMENTOS DA ANTT - EIXO TEMÁTICO/GRUPO DE CONHECIMENTO: DESENVOLVIMENTO INSTITUCIONAL/MODELOS DE GESTÃO
A153: CONVENÇÃO ANUAL PARA APRESENTAÇÃO DOS RESULTADOS DA ANTT (O FUTURO DO TRABALLHO E DA GESTÃO) | B153: EXBOSS DESENVOLVIMENTO DE PESSOAS E ORGANIZAÇÕES EIRELI - ME | C153: 20139641/0001-39 | D153: 1 | E153: 2020-02-18 | F153: 2020-02-18 | G153: NO PAÍS | H153: JULIANA GONÇALVES DE OLIVEIRA | I153: CONTRATAÇÃO | J153: 136.63 | K153: 0 | L153: 81.42 | M153: =SUM(J153:L153) -> 218.05 | N153: TEMA DEFINIDO NO GUIA DE CONHECIMENTOS DA ANTT - EIXO TEMÁTICO/GRUPO DE CONHECIMENTO: DESENVOLVIMENTO INSTITUCIONAL/MODELOS DE GESTÃO
A154: CONVENÇÃO ANUAL PARA APRESENTAÇÃO DOS RESULTADOS DA ANTT (O FUTURO DO TRABALLHO E DA GESTÃO) | B154: EXBOSS DESENVOLVIMENTO DE PESSOAS E ORGANIZAÇÕES EIRELI - ME | C154: 20139641/0001-39 | D154: 1 | E154: 2020-02-18 | F154: 2020-02-18 | G154: NO PAÍS | H154: JULIANA MIRANDA CRUZ RIBEIRO | I154: CONTRATAÇÃO | J154: 136.63 | K154: 0 | L154: 41.19 | M154: =SUM(J154:L154) -> 177.82 | N154: TEMA DEFINIDO NO GUIA DE CONHECIMENTOS DA ANTT - EIXO TEMÁTICO/GRUPO DE CONHECIMENTO: DESENVOLVIMENTO INSTITUCIONAL/MODELOS DE GESTÃO
A155: CONVENÇÃO ANUAL PARA APRESENTAÇÃO DOS RESULTADOS DA ANTT (O FUTURO DO TRABALLHO E DA GESTÃO) | B155: EXBOSS DESENVOLVIMENTO DE PESSOAS E ORGANIZAÇÕES EIRELI - ME | C155: 20139641/0001-39 | D155: 1 | E155: 2020-02-18 | F155: 2020-02-18 | G155: NO PAÍS | H155: JULYCE ODILIA DE MATOS COSTA | I155: CONTRATAÇÃO | J155: 136.63 | K155: 0 | L155: 83.50029167 | M155: =SUM(J155:L155) -> 220.1302917 | N155: TEMA DEFINIDO NO GUIA DE CONHECIMENTOS DA ANTT - EIXO TEMÁTICO/GRUPO DE CONHECIMENTO: DESENVOLVIMENTO INSTITUCIONAL/MODELOS DE GESTÃO
A156: CONVENÇÃO ANUAL PARA APRESENTAÇÃO DOS RESULTADOS DA ANTT (O FUTURO DO TRABALLHO E DA GESTÃO) | B156: EXBOSS DESENVOLVIMENTO DE PESSOAS E ORGANIZAÇÕES EIRELI - ME | C156: 20139641/0001-39 | D156: 1 | E156: 2020-02-18 | F156: 2020-02-18 | G156: NO PAÍS | H156: JUSCELINO PEDROSO DIAS | I156: CONTRATAÇÃO | J156: 136.63 | K156: 0 | L156: 46.85 | M156: =SUM(J156:L156) -> 183.48 | N156: TEMA DEFINIDO NO GUIA DE CONHECIMENTOS DA ANTT - EIXO TEMÁTICO/GRUPO DE CONHECIMENTO: DESENVOLVIMENTO INSTITUCIONAL/MODELOS DE GESTÃO
A157: CONVENÇÃO ANUAL PARA APRESENTAÇÃO DOS RESULTADOS DA ANTT (O FUTURO DO TRABALLHO E DA GESTÃO) | B157: EXBOSS DESENVOLVIMENTO DE PESSOAS E ORGANIZAÇÕES EIRELI - ME | C157: 20139641/0001-39 | D157: 1 | E157: 2020-02-18 | F157: 2020-02-18 | G157: NO PAÍS | H157: KALINE DANTAS GALVAO | I157: CONTRATAÇÃO | J157: 136.63 | K157: 0 | L157: 15.17 | M157: =SUM(J157:L157) -> 151.8 | N157: TEMA DEFINIDO NO GUIA DE CONHECIMENTOS DA ANTT - EIXO TEMÁTICO/GRUPO DE CONHECIMENTO: DESENVOLVIMENTO INSTITUCIONAL/MODELOS DE GESTÃO
A158: CONVENÇÃO ANUAL PARA APRESENTAÇÃO DOS RESULTADOS DA ANTT (O FUTURO DO TRABALLHO E DA GESTÃO) | B158: EXBOSS DESENVOLVIMENTO DE PESSOAS E ORGANIZAÇÕES EIRELI - ME | C158: 20139641/0001-39 | D158: 1 | E158: 2020-02-18 | F158: 2020-02-18 | G158: NO PAÍS | H158: KARLA CAMPOS DO CARMO | I158: CONTRATAÇÃO | J158: 136.63 | K158: 0 | L158: 58.11 | M158: =SUM(J158:L158) -> 194.74 | N158: TEMA DEFINIDO NO GUIA DE CONHECIMENTOS DA ANTT - EIXO TEMÁTICO/GRUPO DE CONHECIMENTO: DESENVOLVIMENTO INSTITUCIONAL/MODELOS DE GESTÃO
A159: CONVENÇÃO ANUAL PARA APRESENTAÇÃO DOS RESULTADOS DA ANTT (O FUTURO DO TRABALLHO E DA GESTÃO) | B159: EXBOSS DESENVOLVIMENTO DE PESSOAS E ORGANIZAÇÕES EIRELI - ME | C159: 20139641/0001-39 | D159: 1 | E159: 2020-02-18 | F159: 2020-02-18 | G159: NO PAÍS | H159: LARISSA WENDLING BRAGA CÔRTES | I159: CONTRATAÇÃO | J159: 136.63 | K159: 0 | L159: 73.12 | M159: =SUM(J159:L159) -> 209.75 | N159: TEMA DEFINIDO NO GUIA DE CONHECIMENTOS DA ANTT - EIXO TEMÁTICO/GRUPO DE CONHECIMENTO: DESENVOLVIMENTO INSTITUCIONAL/MODELOS DE GESTÃO
A160: CONVENÇÃO ANUAL PARA APRESENTAÇÃO DOS RESULTADOS DA ANTT (O FUTURO DO TRABALLHO E DA GESTÃO) | B160: EXBOSS DESENVOLVIMENTO DE PESSOAS E ORGANIZAÇÕES EIRELI - ME | C160: 20139641/0001-39 | D160: 1 | E160: 2020-02-18 | F160: 2020-02-18 | G160: NO PAÍS | H160: LEANDRO PAIVA DE OLIVEIRA | I160: CONTRATAÇÃO | J160: 136.63 | K160: 0 | L160: 36.69 | M160: =SUM(J160:L160) -> 173.32 | N160: TEMA DEFINIDO NO GUIA DE CONHECIMENTOS DA ANTT - EIXO TEMÁTICO/GRUPO DE CONHECIMENTO: DESENVOLVIMENTO INSTITUCIONAL/MODELOS DE GESTÃO
A161: CONVENÇÃO ANUAL PARA APRESENTAÇÃO DOS RESULTADOS DA ANTT (O FUTURO DO TRABALLHO E DA GESTÃO) | B161: EXBOSS DESENVOLVIMENTO DE PESSOAS E ORGANIZAÇÕES EIRELI - ME | C161: 20139641/0001-39 | D161: 1 | E161: 2020-02-18 | F161: 2020-02-18 | G161: NO PAÍS | H161: LEILANE MACAMBIRA NORMANDO | I161: CONTRATAÇÃO | J161: 136.63 | K161: 0 | L161: 67.53 | M161: =SUM(J161:L161) -> 204.16 | N161: TEMA DEFINIDO NO GUIA DE CONHECIMENTOS DA ANTT - EIXO TEMÁTICO/GRUPO DE CONHECIMENTO: DESENVOLVIMENTO INSTITUCIONAL/MODELOS DE GESTÃO
A162: CONVENÇÃO ANUAL PARA APRESENTAÇÃO DOS RESULTADOS DA ANTT (O FUTURO DO TRABALLHO E DA GESTÃO) | B162: EXBOSS DESENVOLVIMENTO DE PESSOAS E ORGANIZAÇÕES EIRELI - ME | C162: 20139641/0001-39 | D162: 1 | E162: 2020-02-18 | F162: 2020-02-18 | G162: NO PAÍS | H162: LEONARDO FARIAS PASSOS | I162: CONTRATAÇÃO | J162: 136.63 | K162: 0 | L162: 91.33 | M162: =SUM(J162:L162) -> 227.96 | N162: TEMA DEFINIDO NO GUIA DE CONHECIMENTOS DA ANTT - EIXO TEMÁTICO/GRUPO DE CONHECIMENTO: DESENVOLVIMENTO INSTITUCIONAL/MODELOS DE GESTÃO
A163: CONVENÇÃO ANUAL PARA APRESENTAÇÃO DOS RESULTADOS DA ANTT (O FUTURO DO TRABALLHO E DA GESTÃO) | B163: EXBOSS DESENVOLVIMENTO DE PESSOAS E ORGANIZAÇÕES EIRELI - ME | C163: 20139641/0001-39 | D163: 1 | E163: 2020-02-18 | F163: 2020-02-18 | G163: NO PAÍS | H163: LEONARDO VIEIRA E SILVA | I163: CONTRATAÇÃO | J163: 136.63 | K163: 0 | L163: 41.63 | M163: =SUM(J163:L163) -> 178.26 | N163: TEMA DEFINIDO NO GUIA DE CONHECIMENTOS DA ANTT - EIXO TEMÁTICO/GRUPO DE CONHECIMENTO: DESENVOLVIMENTO INSTITUCIONAL/MODELOS DE GESTÃO
A164: CONVENÇÃO ANUAL PARA APRESENTAÇÃO DOS RESULTADOS DA ANTT (O FUTURO DO TRABALLHO E DA GESTÃO) | B164: EXBOSS DESENVOLVIMENTO DE PESSOAS E ORGANIZAÇÕES EIRELI - ME | C164: 20139641/0001-39 | D164: 1 | E164: 2020-02-18 | F164: 2020-02-18 | G164: NO PAÍS | H164: LETICIA MACHADO DANTAS | I164: CONTRATAÇÃO | J164: 136.63 | K164: 0 | L164: 43.77575 | M164: =SUM(J164:L164) -> 180.40575 | N164: TEMA DEFINIDO NO GUIA DE CONHECIMENTOS DA ANTT - EIXO TEMÁTICO/GRUPO DE CONHECIMENTO: DESENVOLVIMENTO INSTITUCIONAL/MODELOS DE GESTÃO
A165: CONVENÇÃO ANUAL PARA APRESENTAÇÃO DOS RESULTADOS DA ANTT (O FUTURO DO TRABALLHO E DA GESTÃO) | B165: EXBOSS DESENVOLVIMENTO DE PESSOAS E ORGANIZAÇÕES EIRELI - ME | C165: 20139641/0001-39 | D165: 1 | E165: 2020-02-18 | F165: 2020-02-18 | G165: NO PAÍS | H165: LEVINA APARECIDA MACHADO SILVA | I165: CONTRATAÇÃO | J165: 136.63 | K165: 0 | L165: 87.65 | M165: =SUM(J165:L165) -> 224.28 | N165: TEMA DEFINIDO NO GUIA DE CONHECIMENTOS DA ANTT - EIXO TEMÁTICO/GRUPO DE CONHECIMENTO: DESENVOLVIMENTO INSTITUCIONAL/MODELOS DE GESTÃO
A166: CONVENÇÃO ANUAL PARA APRESENTAÇÃO DOS RESULTADOS DA ANTT (O FUTURO DO TRABALLHO E DA GESTÃO) | B166: EXBOSS DESENVOLVIMENTO DE PESSOAS E ORGANIZAÇÕES EIRELI - ME | C166: 20139641/0001-39 | D166: 1 | E166: 2020-02-18 | F166: 2020-02-18 | G166: NO PAÍS | H166: LIGIA MARIA DE OLIVEIRA BARROS | I166: CONTRATAÇÃO | J166: 136.63 | K166: 0 | L166: 10.09 | M166: =SUM(J166:L166) -> 146.72 | N166: TEMA DEFINIDO NO GUIA DE CONHECIMENTOS DA ANTT - EIXO TEMÁTICO/GRUPO DE CONHECIMENTO: DESENVOLVIMENTO INSTITUCIONAL/MODELOS DE GESTÃO
A167: CONVENÇÃO ANUAL PARA APRESENTAÇÃO DOS RESULTADOS DA ANTT (O FUTURO DO TRABALLHO E DA GESTÃO) | B167: EXBOSS DESENVOLVIMENTO DE PESSOAS E ORGANIZAÇÕES EIRELI - ME | C167: 20139641/0001-39 | D167: 1 | E167: 2020-02-18 | F167: 2020-02-18 | G167: NO PAÍS | H167: LILIAN MORAIS DE OLIVEIRA | I167: CONTRATAÇÃO | J167: 136.63 | K167: 0 | L167: 36.69 | M167: =SUM(J167:L167) -> 173.32 | N167: TEMA DEFINIDO NO GUIA DE CONHECIMENTOS DA ANTT - EIXO TEMÁTICO/GRUPO DE CONHECIMENTO: DESENVOLVIMENTO INSTITUCIONAL/MODELOS DE GESTÃO
A168: CONVENÇÃO ANUAL PARA APRESENTAÇÃO DOS RESULTADOS DA ANTT (O FUTURO DO TRABALLHO E DA GESTÃO) | B168: EXBOSS DESENVOLVIMENTO DE PESSOAS E ORGANIZAÇÕES EIRELI - ME | C168: 20139641/0001-39 | D168: 1 | E168: 2020-02-18 | F168: 2020-02-18 | G168: NO PAÍS | H168: LISANGELA JORGE CARIOCA SANTOS | I168: CONTRATAÇÃO | J168: 136.63 | K168: 0 | L168: 41.63 | M168: =SUM(J168:L168) -> 178.26 | N168: TEMA DEFINIDO NO GUIA DE CONHECIMENTOS DA ANTT - EIXO TEMÁTICO/GRUPO DE CONHECIMENTO: DESENVOLVIMENTO INSTITUCIONAL/MODELOS DE GESTÃO
A169: CONVENÇÃO ANUAL PARA APRESENTAÇÃO DOS RESULTADOS DA ANTT (O FUTURO DO TRABALLHO E DA GESTÃO) | B169: EXBOSS DESENVOLVIMENTO DE PESSOAS E ORGANIZAÇÕES EIRELI - ME | C169: 20139641/0001-39 | D169: 1 | E169: 2020-02-18 | F169: 2020-02-18 | G169: NO PAÍS | H169: LIVIA RIBEIRO DE OLIVEIRA | I169: CONTRATAÇÃO | J169: 136.63 | K169: 0 | L169: 67.53 | M169: =SUM(J169:L169) -> 204.16 | N169: TEMA DEFINIDO NO GUIA DE CONHECIMENTOS DA ANTT - EIXO TEMÁTICO/GRUPO DE CONHECIMENTO: DESENVOLVIMENTO INSTITUCIONAL/MODELOS DE GESTÃO
A170: CONVENÇÃO ANUAL PARA APRESENTAÇÃO DOS RESULTADOS DA ANTT (O FUTURO DO TRABALLHO E DA GESTÃO) | B170: EXBOSS DESENVOLVIMENTO DE PESSOAS E ORGANIZAÇÕES EIRELI - ME | C170: 20139641/0001-39 | D170: 1 | E170: 2020-02-18 | F170: 2020-02-18 | G170: NO PAÍS | H170: LUCIANO ESTEVE FERREIRA DE ASSIS | I170: CONTRATAÇÃO | J170: 136.63 | K170: 0 | L170: 81.42 | M170: =SUM(J170:L170) -> 218.05 | N170: TEMA DEFINIDO NO GUIA DE CONHECIMENTOS DA ANTT - EIXO TEMÁTICO/GRUPO DE CONHECIMENTO: DESENVOLVIMENTO INSTITUCIONAL/MODELOS DE GESTÃO
A171: CONVENÇÃO ANUAL PARA APRESENTAÇÃO DOS RESULTADOS DA ANTT (O FUTURO DO TRABALLHO E DA GESTÃO) | B171: EXBOSS DESENVOLVIMENTO DE PESSOAS E ORGANIZAÇÕES EIRELI - ME | C171: 20139641/0001-39 | D171: 1 | E171: 2020-02-18 | F171: 2020-02-18 | G171: NO PAÍS | H171: LUCIANO ROSAS GREGGIO | I171: CONTRATAÇÃO | J171: 136.63 | K171: 0 | L171: 40.12 | M171: =SUM(J171:L171) -> 176.75 | N171: TEMA DEFINIDO NO GUIA DE CONHECIMENTOS DA ANTT - EIXO TEMÁTICO/GRUPO DE CONHECIMENTO: DESENVOLVIMENTO INSTITUCIONAL/MODELOS DE GESTÃO
A172: CONVENÇÃO ANUAL PARA APRESENTAÇÃO DOS RESULTADOS DA ANTT (O FUTURO DO TRABALLHO E DA GESTÃO) | B172: EXBOSS DESENVOLVIMENTO DE PESSOAS E ORGANIZAÇÕES EIRELI - ME | C172: 20139641/0001-39 | D172: 1 | E172: 2020-02-18 | F172: 2020-02-18 | G172: NO PAÍS | H172: LUCIENE DA COSTA FRAZÃO DE PINA | I172: CONTRATAÇÃO | J172: 136.63 | K172: 0 | L172: 75.52 | M172: =SUM(J172:L172) -> 212.15 | N172: TEMA DEFINIDO NO GUIA DE CONHECIMENTOS DA ANTT - EIXO TEMÁTICO/GRUPO DE CONHECIMENTO: DESENVOLVIMENTO INSTITUCIONAL/MODELOS DE GESTÃO
A173: CONVENÇÃO ANUAL PARA APRESENTAÇÃO DOS RESULTADOS DA ANTT (O FUTURO DO TRABALLHO E DA GESTÃO) | B173: EXBOSS DESENVOLVIMENTO DE PESSOAS E ORGANIZAÇÕES EIRELI - ME | C173: 20139641/0001-39 | D173: 1 | E173: 2020-02-18 | F173: 2020-02-18 | G173: NO PAÍS | H173: LUIS ALBERTO AQUINO AGRA | I173: CONTRATAÇÃO | J173: 136.63 | K173: 0 | L173: 81.42 | M173: =SUM(J173:L173) -> 218.05 | N173: TEMA DEFINIDO NO GUIA DE CONHECIMENTOS DA ANTT - EIXO TEMÁTICO/GRUPO DE CONHECIMENTO: DESENVOLVIMENTO INSTITUCIONAL/MODELOS DE GESTÃO
A174: CONVENÇÃO ANUAL PARA APRESENTAÇÃO DOS RESULTADOS DA ANTT (O FUTURO DO TRABALLHO E DA GESTÃO) | B174: EXBOSS DESENVOLVIMENTO DE PESSOAS E ORGANIZAÇÕES EIRELI - ME | C174: 20139641/0001-39 | D174: 1 | E174: 2020-02-18 | F174: 2020-02-18 | G174: NO PAÍS | H174: LUIS HENRIQUE SOARES DOS SANTOS | I174: CONTRATAÇÃO | J174: 136.63 | K174: 0 | L174: 42.28 | M174: =SUM(J174:L174) -> 178.91 | N174: TEMA DEFINIDO NO GUIA DE CONHECIMENTOS DA ANTT - EIXO TEMÁTICO/GRUPO DE CONHECIMENTO: DESENVOLVIMENTO INSTITUCIONAL/MODELOS DE GESTÃO
A175: CONVENÇÃO ANUAL PARA APRESENTAÇÃO DOS RESULTADOS DA ANTT (O FUTURO DO TRABALLHO E DA GESTÃO) | B175: EXBOSS DESENVOLVIMENTO DE PESSOAS E ORGANIZAÇÕES EIRELI - ME | C175: 20139641/0001-39 | D175: 1 | E175: 2020-02-18 | F175: 2020-02-18 | G175: NO PAÍS | H175: MAISA PARRA TUCUNDUVA | I175: CONTRATAÇÃO | J175: 136.63 | K175: 0 | L175: 42.28 | M175: =SUM(J175:L175) -> 178.91 | N175: TEMA DEFINIDO NO GUIA DE CONHECIMENTOS DA ANTT - EIXO TEMÁTICO/GRUPO DE CONHECIMENTO: DESENVOLVIMENTO INSTITUCIONAL/MODELOS DE GESTÃO
A176: CONVENÇÃO ANUAL PARA APRESENTAÇÃO DOS RESULTADOS DA ANTT (O FUTURO DO TRABALLHO E DA GESTÃO) | B176: EXBOSS DESENVOLVIMENTO DE PESSOAS E ORGANIZAÇÕES EIRELI - ME | C176: 20139641/0001-39 | D176: 1 | E176: 2020-02-18 | F176: 2020-02-18 | G176: NO PAÍS | H176: MARCELO BAVIER MARCOS | I176: CONTRATAÇÃO | J176: 136.63 | K176: 0 | L176: 75.2 | M176: =SUM(J176:L176) -> 211.83 | N176: TEMA DEFINIDO NO GUIA DE CONHECIMENTOS DA ANTT - EIXO TEMÁTICO/GRUPO DE CONHECIMENTO: DESENVOLVIMENTO INSTITUCIONAL/MODELOS DE GESTÃO
A177: CONVENÇÃO ANUAL PARA APRESENTAÇÃO DOS RESULTADOS DA ANTT (O FUTURO DO TRABALLHO E DA GESTÃO) | B177: EXBOSS DESENVOLVIMENTO DE PESSOAS E ORGANIZAÇÕES EIRELI - ME | C177: 20139641/0001-39 | D177: 1 | E177: 2020-02-18 | F177: 2020-02-18 | G177: NO PAÍS | H177: MARCELO JOSÉ BARBOSA AMORELLI | I177: CONTRATAÇÃO | J177: 136.63 | K177: 0 | L177: 87.65 | M177: =SUM(J177:L177) -> 224.28 | N177: TEMA DEFINIDO NO GUIA DE CONHECIMENTOS DA ANTT - EIXO TEMÁTICO/GRUPO DE CONHECIMENTO: DESENVOLVIMENTO INSTITUCIONAL/MODELOS DE GESTÃO
A178: CONVENÇÃO ANUAL PARA APRESENTAÇÃO DOS RESULTADOS DA ANTT (O FUTURO DO TRABALLHO E DA GESTÃO) | B178: EXBOSS DESENVOLVIMENTO DE PESSOAS E ORGANIZAÇÕES EIRELI - ME | C178: 20139641/0001-39 | D178: 1 | E178: 2020-02-18 | F178: 2020-02-18 | G178: NO PAÍS | H178: MARCELO PEREIRA RAMOS | I178: CONTRATAÇÃO | J178: 136.63 | K178: 0 | L178: 42.68329167 | M178: =SUM(J178:L178) -> 179.3132917 | N178: TEMA DEFINIDO NO GUIA DE CONHECIMENTOS DA ANTT - EIXO TEMÁTICO/GRUPO DE CONHECIMENTO: DESENVOLVIMENTO INSTITUCIONAL/MODELOS DE GESTÃO
A179: CONVENÇÃO ANUAL PARA APRESENTAÇÃO DOS RESULTADOS DA ANTT (O FUTURO DO TRABALLHO E DA GESTÃO) | B179: EXBOSS DESENVOLVIMENTO DE PESSOAS E ORGANIZAÇÕES EIRELI - ME | C179: 20139641/0001-39 | D179: 1 | E179: 2020-02-18 | F179: 2020-02-18 | G179: NO PAÍS | H179: MARCIA LIKA MON-MA | I179: CONTRATAÇÃO | J179: 136.63 | K179: 0 | L179: 85.58 | M179: =SUM(J179:L179) -> 222.21 | N179: TEMA DEFINIDO NO GUIA DE CONHECIMENTOS DA ANTT - EIXO TEMÁTICO/GRUPO DE CONHECIMENTO: DESENVOLVIMENTO INSTITUCIONAL/MODELOS DE GESTÃO
A180: CONVENÇÃO ANUAL PARA APRESENTAÇÃO DOS RESULTADOS DA ANTT (O FUTURO DO TRABALLHO E DA GESTÃO) | B180: EXBOSS DESENVOLVIMENTO DE PESSOAS E ORGANIZAÇÕES EIRELI - ME | C180: 20139641/0001-39 | D180: 1 | E180: 2020-02-18 | F180: 2020-02-18 | G180: NO PAÍS | H180: MARCIA RODRIGUES DOS SANTOS | I180: CONTRATAÇÃO | J180: 136.63 | K180: 0 | L180: 66.94 | M180: =SUM(J180:L180) -> 203.57 | N180: TEMA DEFINIDO NO GUIA DE CONHECIMENTOS DA ANTT - EIXO TEMÁTICO/GRUPO DE CONHECIMENTO: DESENVOLVIMENTO INSTITUCIONAL/MODELOS DE GESTÃO
A181: CONVENÇÃO ANUAL PARA APRESENTAÇÃO DOS RESULTADOS DA ANTT (O FUTURO DO TRABALLHO E DA GESTÃO) | B181: EXBOSS DESENVOLVIMENTO DE PESSOAS E ORGANIZAÇÕES EIRELI - ME | C181: 20139641/0001-39 | D181: 1 | E181: 2020-02-18 | F181: 2020-02-18 | G181: NO PAÍS | H181: MARCILIO FEITOSA GOMES | I181: CONTRATAÇÃO | J181: 136.63 | K181: 0 | L181: 15.17 | M181: =SUM(J181:L181) -> 151.8 | N181: TEMA DEFINIDO NO GUIA DE CONHECIMENTOS DA ANTT - EIXO TEMÁTICO/GRUPO DE CONHECIMENTO: DESENVOLVIMENTO INSTITUCIONAL/MODELOS DE GESTÃO
A182: CONVENÇÃO ANUAL PARA APRESENTAÇÃO DOS RESULTADOS DA ANTT (O FUTURO DO TRABALLHO E DA GESTÃO) | B182: EXBOSS DESENVOLVIMENTO DE PESSOAS E ORGANIZAÇÕES EIRELI - ME | C182: 20139641/0001-39 | D182: 1 | E182: 2020-02-18 | F182: 2020-02-18 | G182: NO PAÍS | H182: MARCIO DE OLIVEIRA PINTO | I182: CONTRATAÇÃO | J182: 136.63 | K182: 0 | L182: 81.42 | M182: =SUM(J182:L182) -> 218.05 | N182: TEMA DEFINIDO NO GUIA DE CONHECIMENTOS DA ANTT - EIXO TEMÁTICO/GRUPO DE CONHECIMENTO: DESENVOLVIMENTO INSTITUCIONAL/MODELOS DE GESTÃO
A183: CONVENÇÃO ANUAL PARA APRESENTAÇÃO DOS RESULTADOS DA ANTT (O FUTURO DO TRABALLHO E DA GESTÃO) | B183: EXBOSS DESENVOLVIMENTO DE PESSOAS E ORGANIZAÇÕES EIRELI - ME | C183: 20139641/0001-39 | D183: 1 | E183: 2020-02-18 | F183: 2020-02-18 | G183: NO PAÍS | H183: MARCIO LUIS GALINDO | I183: CONTRATAÇÃO | J183: 136.63 | K183: 0 | L183: 135.56 | M183: =SUM(J183:L183) -> 272.19 | N183: TEMA DEFINIDO NO GUIA DE CONHECIMENTOS DA ANTT - EIXO TEMÁTICO/GRUPO DE CONHECIMENTO: DESENVOLVIMENTO INSTITUCIONAL/MODELOS DE GESTÃO
A184: CONVENÇÃO ANUAL PARA APRESENTAÇÃO DOS RESULTADOS DA ANTT (O FUTURO DO TRABALLHO E DA GESTÃO) | B184: EXBOSS DESENVOLVIMENTO DE PESSOAS E ORGANIZAÇÕES EIRELI - ME | C184: 20139641/0001-39 | D184: 1 | E184: 2020-02-18 | F184: 2020-02-18 | G184: NO PAÍS | H184: MARCIO XAVIER DE ARAUJO | I184: CONTRATAÇÃO | J184: 136.63 | K184: 0 | L184: 69.52 | M184: =SUM(J184:L184) -> 206.15 | N184: TEMA DEFINIDO NO GUIA DE CONHECIMENTOS DA ANTT - EIXO TEMÁTICO/GRUPO DE CONHECIMENTO: DESENVOLVIMENTO INSTITUCIONAL/MODELOS DE GESTÃO
A185: CONVENÇÃO ANUAL PARA APRESENTAÇÃO DOS RESULTADOS DA ANTT (O FUTURO DO TRABALLHO E DA GESTÃO) | B185: EXBOSS DESENVOLVIMENTO DE PESSOAS E ORGANIZAÇÕES EIRELI - ME | C185: 20139641/0001-39 | D185: 1 | E185: 2020-02-18 | F185: 2020-02-18 | G185: NO PAÍS | H185: MARCO JUN BORGES | I185: CONTRATAÇÃO | J185: 136.63 | K185: 0 | L185: 41.63 | M185: =SUM(J185:L185) -> 178.26 | N185: TEMA DEFINIDO NO GUIA DE CONHECIMENTOS DA ANTT - EIXO TEMÁTICO/GRUPO DE CONHECIMENTO: DESENVOLVIMENTO INSTITUCIONAL/MODELOS DE GESTÃO
A186: CONVENÇÃO ANUAL PARA APRESENTAÇÃO DOS RESULTADOS DA ANTT (O FUTURO DO TRABALLHO E DA GESTÃO) | B186: EXBOSS DESENVOLVIMENTO DE PESSOAS E ORGANIZAÇÕES EIRELI - ME | C186: 20139641/0001-39 | D186: 1 | E186: 2020-02-18 | F186: 2020-02-18 | G186: NO PAÍS | H186: MARCOS ANTONIO LIMA DAS NEVES | I186: CONTRATAÇÃO | J186: 136.63 | K186: 0 | L186: 13.81 | M186: =SUM(J186:L186) -> 150.44 | N186: TEMA DEFINIDO NO GUIA DE CONHECIMENTOS DA ANTT - EIXO TEMÁTICO/GRUPO DE CONHECIMENTO: DESENVOLVIMENTO INSTITUCIONAL/MODELOS DE GESTÃO
A187: CONVENÇÃO ANUAL PARA APRESENTAÇÃO DOS RESULTADOS DA ANTT (O FUTURO DO TRABALLHO E DA GESTÃO) | B187: EXBOSS DESENVOLVIMENTO DE PESSOAS E ORGANIZAÇÕES EIRELI - ME | C187: 20139641/0001-39 | D187: 1 | E187: 2020-02-18 | F187: 2020-02-18 | G187: NO PAÍS | H187: MARIA CAROLINA PULLEN DE ALENCAR ARRAIS | I187: CONTRATAÇÃO | J187: 136.63 | K187: 0 | L187: 89.9 | M187: =SUM(J187:L187) -> 226.53 | N187: TEMA DEFINIDO NO GUIA DE CONHECIMENTOS DA ANTT - EIXO TEMÁTICO/GRUPO DE CONHECIMENTO: DESENVOLVIMENTO INSTITUCIONAL/MODELOS DE GESTÃO
A188: CONVENÇÃO ANUAL PARA APRESENTAÇÃO DOS RESULTADOS DA ANTT (O FUTURO DO TRABALLHO E DA GESTÃO) | B188: EXBOSS DESENVOLVIMENTO DE PESSOAS E ORGANIZAÇÕES EIRELI - ME | C188: 20139641/0001-39 | D188: 1 | E188: 2020-02-18 | F188: 2020-02-18 | G188: NO PAÍS | H188: MARIA CECILIA SANT ANNA LACERDA | I188: CONTRATAÇÃO | J188: 136.63 | K188: 0 | L188: 67.09 | M188: =SUM(J188:L188) -> 203.72 | N188: TEMA DEFINIDO NO GUIA DE CONHECIMENTOS DA ANTT - EIXO TEMÁTICO/GRUPO DE CONHECIMENTO: DESENVOLVIMENTO INSTITUCIONAL/MODELOS DE GESTÃO
A189: CONVENÇÃO ANUAL PARA APRESENTAÇÃO DOS RESULTADOS DA ANTT (O FUTURO DO TRABALLHO E DA GESTÃO) | B189: EXBOSS DESENVOLVIMENTO DE PESSOAS E ORGANIZAÇÕES EIRELI - ME | C189: 20139641/0001-39 | D189: 1 | E189: 2020-02-18 | F189: 2020-02-18 | G189: NO PAÍS | H189: MARIA DE LOURDES DELGADO CYRNE MARTINS | I189: CONTRATAÇÃO | J189: 136.63 | K189: 0 | L189: 81.42 | M189: =SUM(J189:L189) -> 218.05 | N189: TEMA DEFINIDO NO GUIA DE CONHECIMENTOS DA ANTT - EIXO TEMÁTICO/GRUPO DE CONHECIMENTO: DESENVOLVIMENTO INSTITUCIONAL/MODELOS DE GESTÃO
A190: CONVENÇÃO ANUAL PARA APRESENTAÇÃO DOS RESULTADOS DA ANTT (O FUTURO DO TRABALLHO E DA GESTÃO) | B190: EXBOSS DESENVOLVIMENTO DE PESSOAS E ORGANIZAÇÕES EIRELI - ME | C190: 20139641/0001-39 | D190: 1 | E190: 2020-02-18 | F190: 2020-02-18 | G190: NO PAÍS | H190: MARIA DE LOURDES LEITE BARRETO | I190: CONTRATAÇÃO | J190: 136.63 | K190: 0 | L190: 28.39 | M190: =SUM(J190:L190) -> 165.02 | N190: TEMA DEFINIDO NO GUIA DE CONHECIMENTOS DA ANTT - EIXO TEMÁTICO/GRUPO DE CONHECIMENTO: DESENVOLVIMENTO INSTITUCIONAL/MODELOS DE GESTÃO
A191: CONVENÇÃO ANUAL PARA APRESENTAÇÃO DOS RESULTADOS DA ANTT (O FUTURO DO TRABALLHO E DA GESTÃO) | B191: EXBOSS DESENVOLVIMENTO DE PESSOAS E ORGANIZAÇÕES EIRELI - ME | C191: 20139641/0001-39 | D191: 1 | E191: 2020-02-18 | F191: 2020-02-18 | G191: NO PAÍS | H191: MARIANA LOMBARDO DE LIMA | I191: CONTRATAÇÃO | J191: 136.63 | K191: 0 | L191: 83.50029167 | M191: =SUM(J191:L191) -> 220.1302917 | N191: TEMA DEFINIDO NO GUIA DE CONHECIMENTOS DA ANTT - EIXO TEMÁTICO/GRUPO DE CONHECIMENTO: DESENVOLVIMENTO INSTITUCIONAL/MODELOS DE GESTÃO
A192: CONVENÇÃO ANUAL PARA APRESENTAÇÃO DOS RESULTADOS DA ANTT (O FUTURO DO TRABALLHO E DA GESTÃO) | B192: EXBOSS DESENVOLVIMENTO DE PESSOAS E ORGANIZAÇÕES EIRELI - ME | C192: 20139641/0001-39 | D192: 1 | E192: 2020-02-18 | F192: 2020-02-18 | G192: NO PAÍS | H192: MARINA SOARES ALMEIDA | I192: CONTRATAÇÃO | J192: 136.63 | K192: 0 | L192: 71.05 | M192: =SUM(J192:L192) -> 207.68 | N192: TEMA DEFINIDO NO GUIA DE CONHECIMENTOS DA ANTT - EIXO TEMÁTICO/GRUPO DE CONHECIMENTO: DESENVOLVIMENTO INSTITUCIONAL/MODELOS DE GESTÃO
A193: CONVENÇÃO ANUAL PARA APRESENTAÇÃO DOS RESULTADOS DA ANTT (O FUTURO DO TRABALLHO E DA GESTÃO) | B193: EXBOSS DESENVOLVIMENTO DE PESSOAS E ORGANIZAÇÕES EIRELI - ME | C193: 20139641/0001-39 | D193: 1 | E193: 2020-02-18 | F193: 2020-02-18 | G193: NO PAÍS | H193: MARINA VELOSO DE MELO DOS SANTOS | I193: CONTRATAÇÃO | J193: 136.63 | K193: 0 | L193: 75.52 | M193: =SUM(J193:L193) -> 212.15 | N193: TEMA DEFINIDO NO GUIA DE CONHECIMENTOS DA ANTT - EIXO TEMÁTICO/GRUPO DE CONHECIMENTO: DESENVOLVIMENTO INSTITUCIONAL/MODELOS DE GESTÃO
A194: CONVENÇÃO ANUAL PARA APRESENTAÇÃO DOS RESULTADOS DA ANTT (O FUTURO DO TRABALLHO E DA GESTÃO) | B194: EXBOSS DESENVOLVIMENTO DE PESSOAS E ORGANIZAÇÕES EIRELI - ME | C194: 20139641/0001-39 | D194: 1 | E194: 2020-02-18 | F194: 2020-02-18 | G194: NO PAÍS | H194: MAURICIO HIDEO TAMINATO AMEOMO | I194: CONTRATAÇÃO | J194: 136.63 | K194: 0 | L194: 41.63 | M194: =SUM(J194:L194) -> 178.26 | N194: TEMA DEFINIDO NO GUIA DE CONHECIMENTOS DA ANTT - EIXO TEMÁTICO/GRUPO DE CONHECIMENTO: DESENVOLVIMENTO INSTITUCIONAL/MODELOS DE GESTÃO
A195: CONVENÇÃO ANUAL PARA APRESENTAÇÃO DOS RESULTADOS DA ANTT (O FUTURO DO TRABALLHO E DA GESTÃO) | B195: EXBOSS DESENVOLVIMENTO DE PESSOAS E ORGANIZAÇÕES EIRELI - ME | C195: 20139641/0001-39 | D195: 1 | E195: 2020-02-18 | F195: 2020-02-18 | G195: NO PAÍS | H195: MONICA MARINHO DO NASCIMENTO DELAMARE | I195: CONTRATAÇÃO | J195: 136.63 | K195: 0 | L195: 42.28 | M195: =SUM(J195:L195) -> 178.91 | N195: TEMA DEFINIDO NO GUIA DE CONHECIMENTOS DA ANTT - EIXO TEMÁTICO/GRUPO DE CONHECIMENTO: DESENVOLVIMENTO INSTITUCIONAL/MODELOS DE GESTÃO
A196: CONVENÇÃO ANUAL PARA APRESENTAÇÃO DOS RESULTADOS DA ANTT (O FUTURO DO TRABALLHO E DA GESTÃO) | B196: EXBOSS DESENVOLVIMENTO DE PESSOAS E ORGANIZAÇÕES EIRELI - ME | C196: 20139641/0001-39 | D196: 1 | E196: 2020-02-18 | F196: 2020-02-18 | G196: NO PAÍS | H196: MURSHED MENEZES ALI | I196: CONTRATAÇÃO | J196: 136.63 | K196: 0 | L196: 87.65 | M196: =SUM(J196:L196) -> 224.28 | N196: TEMA DEFINIDO NO GUIA DE CONHECIMENTOS DA ANTT - EIXO TEMÁTICO/GRUPO DE CONHECIMENTO: DESENVOLVIMENTO INSTITUCIONAL/MODELOS DE GESTÃO
A197: CONVENÇÃO ANUAL PARA APRESENTAÇÃO DOS RESULTADOS DA ANTT (O FUTURO DO TRABALLHO E DA GESTÃO) | B197: EXBOSS DESENVOLVIMENTO DE PESSOAS E ORGANIZAÇÕES EIRELI - ME | C197: 20139641/0001-39 | D197: 1 | E197: 2020-02-18 | F197: 2020-02-18 | G197: NO PAÍS | H197: MYLENA MOREIRA DE ALENCASTRO COSTA | I197: CONTRATAÇÃO | J197: 136.63 | K197: 0 | L197: 148.9 | M197: =SUM(J197:L197) -> 285.53 | N197: TEMA DEFINIDO NO GUIA DE CONHECIMENTOS DA ANTT - EIXO TEMÁTICO/GRUPO DE CONHECIMENTO: DESENVOLVIMENTO INSTITUCIONAL/MODELOS DE GESTÃO
A198: CONVENÇÃO ANUAL PARA APRESENTAÇÃO DOS RESULTADOS DA ANTT (O FUTURO DO TRABALLHO E DA GESTÃO) | B198: EXBOSS DESENVOLVIMENTO DE PESSOAS E ORGANIZAÇÕES EIRELI - ME | C198: 20139641/0001-39 | D198: 1 | E198: 2020-02-18 | F198: 2020-02-18 | G198: NO PAÍS | H198: NARA KOHLSDORF | I198: CONTRATAÇÃO | J198: 136.63 | K198: 0 | L198: 87.65 | M198: =SUM(J198:L198) -> 224.28 | N198: TEMA DEFINIDO NO GUIA DE CONHECIMENTOS DA ANTT - EIXO TEMÁTICO/GRUPO DE CONHECIMENTO: DESENVOLVIMENTO INSTITUCIONAL/MODELOS DE GESTÃO
A199: CONVENÇÃO ANUAL PARA APRESENTAÇÃO DOS RESULTADOS DA ANTT (O FUTURO DO TRABALLHO E DA GESTÃO) | B199: EXBOSS DESENVOLVIMENTO DE PESSOAS E ORGANIZAÇÕES EIRELI - ME | C199: 20139641/0001-39 | D199: 1 | E199: 2020-02-18 | F199: 2020-02-18 | G199: NO PAÍS | H199: NOBORU OFUGI | I199: CONTRATAÇÃO | J199: 136.63 | K199: 0 | L199: 65.37 | M199: =SUM(J199:L199) -> 202 | N199: TEMA DEFINIDO NO GUIA DE CONHECIMENTOS DA ANTT - EIXO TEMÁTICO/GRUPO DE CONHECIMENTO: DESENVOLVIMENTO INSTITUCIONAL/MODELOS DE GESTÃO
A200: CONVENÇÃO ANUAL PARA APRESENTAÇÃO DOS RESULTADOS DA ANTT (O FUTURO DO TRABALLHO E DA GESTÃO) | B200: EXBOSS DESENVOLVIMENTO DE PESSOAS E ORGANIZAÇÕES EIRELI - ME | C200: 20139641/0001-39 | D200: 1 | E200: 2020-02-18 | F200: 2020-02-18 | G200: NO PAÍS | H200: PAULO EDUARDO IMPROTA SARAIVA | I200: CONTRATAÇÃO | J200: 136.63 | K200: 0 | L200: 85.58 | M200: =SUM(J200:L200) -> 222.21 | N200: TEMA DEFINIDO NO GUIA DE CONHECIMENTOS DA ANTT - EIXO TEMÁTICO/GRUPO DE CONHECIMENTO: DESENVOLVIMENTO INSTITUCIONAL/MODELOS DE GESTÃO
... 805 more rows
